{"text_format":"1","workbook":"xlsx","n_sheets":3,"sheets":["一覧表から検索","地域、区分から検索","地域、区分検索結果"],"not_rendered":{"charts":0,"images":2,"macros":1,"external_links":1,"defined_names":9,"comments":2,"pivot_tables":0},"unopened":[],"bounds":{"document_bytes":16777216,"sheet_cells":100000,"rows_first":2000,"rows_last":500,"rows_between":2000,"halvings":0,"cell_chars":16384,"cell_head_chars":4096},"cells_cut":0,"cells_raw":0,"read":"whole","date_system":"1900"}

{"sheet":"一覧表から検索","index":0,"n_rows":125,"n_cols":16,"rows_kept":125,"cut":false,"hidden":false,"merged":[[8,1,8,3],[4,1,4,11],[13,10,14,10],[13,11,14,11],[13,12,14,12],[13,13,14,13],[10,0,10,13],[11,0,11,13],[12,0,12,13],[13,6,13,9],[13,0,14,0],[13,1,14,1],[13,2,14,2],[0,12,0,13],[13,3,14,3],[13,4,13,5],[2,0,2,13],[3,1,3,11],[5,0,5,13],[7,1,7,3]]}
[null,null,null,null,null,null,null,null,null,null,null,null,"東京航空局"]
[]
["令和２年度　発注の見通しの公表について(令和３年１月現在）【工事】"]
[]
[]
["  東京航空局における令和２年度の発注の見通しについて、下記のとおり公表します。\n  実際に発注する案件がこの掲載と異なる場合、ここに掲載されない案件が発注される場合があります。"]
[]
["概要：","令和３年１月１日現在の計画等"]
["分類：","工事"]
[]
["１．当該月の計画又は実施案件：■（セルを緑系網掛で表示）"]
["２．新規に追加した案件　　　：■（セルを黄色系網掛で表示）なお、新規案件が当該月の計画又は実施案件の予定の場合は緑系網掛で表示"]
["３．修正した項目　　　　　　：赤文字又は取消し線（削除のみの場合）"]
["ＮＯ","官署名","入札方式等","計画名称等","工事の場所",null,"計画時期",null,null,null,"計画工事種別","工事の概要","参考\n（入札予定時期）","参考\n（公告予定時期）"]
[null,null,null,null,"都道府県","都道府県・区・市町村\n空港名等の場所","自","至","期間\n（目安）"]
[1,"東京航空局","一般競争","新潟空港雨水排水管土砂撤去等工事","新潟県","新潟県新潟市\n新潟空港","2021-04-01","2021-07-01",4,null,"土木工事","新潟空港の雨水排水管の土砂撤去等","第1四半期\n（令和3年度）","第4四半期"]
[2,"東京航空局","一般競争","東京国際空港構内道路維持修繕工事","東京都","東京都大田区\n東京国際空港","2021-04-01","2024-03-31",36,"","ほ装工事","東京国際空港構内道路の土木施設の維持修繕及び航空保安施設等の維持","第4四半期","第3四半期"]
[3,"東京航空局","一般競争","丘珠空港土木施設維持修繕工事","北海道","北海道札幌市\n丘珠空港","2021-04-01","2024-03-31",36,"","ほ装工事","丘珠空港の土木施設の維持修繕及び航空保安施設等の維持","第4四半期","第3四半期"]
[4,"東京航空局","一般競争","東京国際空港構内道路舗装改修工事","東京都","東京都大田区\n東京国際空港","2021-04-01","2022-02-01",11,"","ほ装工事","東京国際空港構内道路の舗装改修","第1四半期\n（令和3年度）","第4四半期"]
[5,"東京航空局","一般競争","東京国際空港表面排水溝改良その他工事","東京都","東京都大田区\n東京国際空港","2021-06-01","2022-03-01",10,"","土木工事","東京国際空港の表面排水溝改良、保安・場周道路舗装改修","第1四半期\n（令和3年度）","第1四半期\n（令和3年度）"]
[6,"東京航空局","一般競争","東京国際空港Ａ誘導路等舗装改修工事","東京都","東京都大田区\n東京国際空港","2021-08-01","2022-03-01",8,"","ほ装工事","東京国際空港Ａ誘導路等の舗装改修","第2四半期\n（令和3年度）","第4四半期\n（令和3年度）"]
[7,"東京航空局","一般競争","東京国際空港共同溝改修工事","東京都","東京都大田区\n東京国際空港","2022-03-01","2023-02-01",12,"","土木工事","東京国際空港共同溝の改修","第4四半期\n（令和3年度）","第4四半期\n（令和3年度）"]
[8,"東京航空局","一般競争","横須賀ＶＯＲ／ＤＭＥカウンターポイズ解体その他工事","神奈川県","神奈川県三浦郡葉山町\n横須賀VOR/DME","2021-01-01","2021-03-01",3,"","建築工事","カウンターポイズ\n規模：S造、φ50m、高さ3.28m\n解体工事\nVOR/DME局舎\n規模：ＲＣ造　建築面積　134.40㎡\n屋上防水改修一式　建具改修","第4四半期","第3四半期"]
[9,"東京航空局","一般競争","稚内空港除雪車庫新築工事","北海道","北海道稚内市\n稚内空港","2021-03-01","2021-11-30",9,"","建築工事","除雪車庫新築\n規模：ＲＣ造　平屋建\n建築面積：920m2\n新築、外構、電気設備、機械設備　一式","第4四半期","第4四半期"]
[10,"東京航空局","一般競争","東京国際空港ＳＲＡ検査場（Ｔ２ゲート）新築工事","東京都","東京都大田区\n東京国際空港","2021-03-01","2021-10-01",8,null,"建築工事","ＳＲＡ検査場（Ｔ２ゲート）\n構造：ＲＣ造　平屋建\n建築面積：504m2\n新築、フェンス、外構、電気設備、機械設備　一式","第4四半期","第4四半期"]
[11,"東京航空局","一般競争","稚内空港他３空港運航援助業務機器移設その他工事","北海道","北海道千歳市\n　新千歳空港\n北海道稚内市\n　稚内空港\n北海道釧路市\n　釧路空港\n北海道函館市\n　函館空港","2021-01-01","2021-05-20",5,"","電気通信工事","統合スポット管理システム設置工事　１式\n運航情報業務用機器移設工事　1式\n運航情報業務用機器撤去工事　1式\n付帯設備設置工事　1式","第4四半期","第3四半期"]
[12,"東京航空局","一般競争","東京国際空港構内道路管理監視システム更新工事","東京都","東京都大田区\n東京国際空港","2021-02-01","2021-12-01",11,"","電気通信工事","ITVカメラ設置工事　1式\n監視設備設置工事　1式","第4四半期","第4四半期"]
[13,"東京航空局","一般競争","坂戸国際対空通信設備更新工事","埼玉県","埼玉県鶴ヶ島市\n坂戸HF","2021-03-01","2021-09-30",7,"","電気通信工事","国際対空更新工事1式\n付帯設備設置工事1式","第4四半期","第4四半期"]
[14,"東京航空局","一般競争","上品山ＳＳＲ更新工事","宮城県","宮城県石巻市\n上品山SSR","2021-03-01","2021-09-30",7,"","電気通信工事","SSR更新工事1式\n付帯設備設置工事1式","第4四半期","第4四半期"]
[15,"東京航空局","一般競争","成田国際対空通信設備更新工事","千葉県","千葉県成田市\n成田国際空港","2021-02-01","2022-01-01",12,"","電気通信工事","国際対空通信設備更新工事1式\n付帯設備設置工事1式","第4四半期","第4四半期"]
[16,"東京航空局","一般競争","秋田空港仮設ＬＯＣ設置工事","秋田県","秋田県秋田市\n秋田空港","2021-04-01","2021-09-01",6,"","電気通信工事","仮設LOC設置工事1式","第4四半期","第4四半期"]
[17,"東京航空局","一般競争","成田ＲＣＡＧ更新工事","千葉県","千葉県成田市\n成田国際空港","2021-03-01","2021-07-01",5,"","電気通信工事","RCAG更新工事1式\n付帯設備設置工事1式","第4四半期","第4四半期"]
[18,"東京航空局","一般競争","守谷ＤＭＥ更新工事","茨城県","茨城県守谷市\n守谷VOR/DME","2021-03-01","2021-10-01",8,"","電気通信工事","DME更新工事1式\n付帯設備設置工事1式","第4四半期","第4四半期"]
[19,"東京航空局","一般競争","千歳ＶＯＲ／ＤＭＥ更新工事","北海道","北海道苫小牧市\n千歳VOR/DME","2021-02-01","2021-09-30",8,null,"電気通信工事","VOR/DME更新工事 1式、付帯設備更新工事　1式\n仮設VOR/DME撤去工事1式","第4四半期","第4四半期"]
[20,"東京航空局","一般競争","東京国際空港ＳＩＭ移設その他工事","東京都","東京都大田区\n東京国際空港","2021-03-01","2021-06-01",4,"","電気通信工事","SIM移設工事1式\n付帯設備設置工事1式","第4四半期","第4四半期"]
[21,"東京航空局","一般競争","函館空港ＴＡＰＳ－ＳＩＭ更新その他工事","北海道","北海道函館市\n函館空港","2021-04-01","2021-09-01",6,"","電気通信工事","TAPS-SIM設置工事1式","第4四半期","第4四半期"]
[22,"東京航空局","一般競争","利尻空港他１空港ＲＡＧ空港用ＩＴＶ装置更新工事","北海道","北海道千歳市\n　新千歳空港\n北海道利尻郡利尻富士町\n　利尻空港\n北海道奥尻郡奥尻町\n　奥尻空港","2021-03-01","2021-07-01",5,"","電気通信工事","RAG-ITV機器設置工事　1式\n付帯設備設置工事　1式","第4四半期","第4四半期"]
[23,"東京航空局","一般競争","新潟空港CCS移設その他工事","新潟県","新潟県新潟市\n新潟空港","2021-03-01","2021-06-01",5,"","電気通信工事","CCS移設工事１式\n付帯設備移設工事1式","第4四半期","第4四半期"]
[24,"東京航空局　","一般競争","東京国際空港３４Ｒ－ＩＭシェルタ移設その他工事","東京都","東京都大田区\n東京国際空港","2021-03-01","2021-07-01",5,null,"電気通信工事","IM移設工事1式\n付帯設備設置・移設工事1式","第4四半期","第4四半期"]
[25,"東京航空局","一般競争","蔵王山田ＶＯＲ発電装置撤去工事","山形県\n宮城県","山形県山形市\n宮城県岩沼市","2021-03-01","2021-06-01",4,"","電気工事","発電装置撤去工事　１式\n付帯設備撤去工事　１式","第4四半期","第4四半期"]
[26,"東京航空局","一般競争","三沢空港航空灯火施設維持工事","青森県","青森県三沢市\n三沢空港","2021-02-01","2024-03-01",38,null,"電気工事","航空灯火施設　一式\n電気施設　一式","第4四半期","第3四半期"]
[27,"東京航空局","一般競争","新潟空港航空灯火施設維持工事","新潟県","新潟県新潟市\n新潟空港","2021-02-01","2024-03-01",38,null,"電気工事","航空灯火施設　一式\n電気施設　一式","第4四半期","第3四半期"]
[28,"東京航空局","一般競争","東京国際空港Ｃ滑走路進入角指示灯設置その他工事","東京都","東京都大田区","2021-02-03","2021-12-01",10,null,"電気工事","進入角指示灯　１式\nケーブル　１式","第4四半期","第4四半期"]
[29,"東京航空局","一般競争","東京国際空港Ａ滑走路中心線灯改良その他工事　その２","東京都","東京都大田区","2021-02-01","2021-03-01",2,null,"電気工事","滑走路灯火　１式\n誘導路灯火　1式\nケーブル　１式","第4四半期","第4四半期"]
[30,"東京航空局","一般競争","百里空港航空灯火施設維持工事","茨城県","茨城県小美玉市\n百里空港","2021-02-01","2024-03-01",38,null,"電気工事","航空灯火施設　一式\n電気施設　一式","第4四半期","第3四半期"]
[31,"東京航空局","一般競争","函館空港進入角指示灯設置その他工事","北海道","北海道函館市\n函館空港","2021-01-01","2021-03-01",3,null,"電気工事","進入角指示灯　１式\n進入角指示灯監視装置　１式\nケーブル　１式","第4四半期","第3四半期"]
[32,"東京航空局","一般競争","新潟空港道路照明灯設置その他工事","新潟県","新潟県新潟市\n新潟空港","2021-01-01","2021-03-01",3,null,"電気工事","道路照明灯　１式\nケーブル　１式","第4四半期","第3四半期"]
[33,"東京航空局","一般競争","北海道地区航空保安用電気施設監視用ITV設置工事","北海道","北海道千歳市\n　新千歳空港\n北海道稚内市\n　稚内空港\n北海道釧路市\n　釧路空港\n北海道函館市\n　函館空港","2021-02-01","2021-03-01",2,"","電気工事","航空保安用電気施設監視用ITV　１式\nケーブル　１式","第4四半期","第4四半期"]
[34,"東京航空局","一般競争","東京国際空港防災通信指令装置更新工事","東京都","東京都大田区\n東京国際空港","2021-01-01","2021-03-01",3,"","電気通信工事","・防災通信指令装置　一式\n・配管及び電源、通信、光ケーブル等","第4四半期","第3四半期"]
[35,"東京航空局","一般競争","東京国際空港海上警備設備更新工事","東京都","東京都大田区\n東京国際空港","2021-02-01","2022-01-31",12,"","電気通信工事","・海上警備設備一式\n・配管及び電源、通信、光ケーブル等","第4四半期","第4四半期"]
[36,"仙台空港事務所","一般競争","仙台ＲＣＡＧ更新他１件工事","宮城県","宮城県名取市\n仙台空港","2021-03-01","2021-06-01",4,"","電気通信工事","RCAG更新工事1式\n付帯設備設置工事1式\nA/G更新工事1式\nTAPS-SIM設置工事1式\n機器撤去工事1式","第4四半期","第4四半期"]
[37,"東京空港事務所","一般競争","友部ＩＴＶ更新その他工事","茨城県","茨城県笠間市","2021-01-01","2021-03-01",3,"","電気通信工事","ITVカメラ設置工事　1式\n付帯設備設置工事　1式","第4四半期","第4四半期"]
[{"$f":"A52+1","v":38},null,null,null,null,null,null,null,{"$f":"IF(#REF!>0,#REF!,DATEDIF(G53,H53,\"M\")+1)","v":{"$error":"#REF!"}},{"$f":"IF(#REF!>0,\"※\",\"\")","v":{"$error":"#REF!"}},null,null,null,null,null,1]
[39,null,null,null,null,null,null,null,{"$f":"IF(#REF!>0,#REF!,DATEDIF(G54,H54,\"M\")+1)","v":{"$error":"#REF!"}},{"$f":"IF(#REF!>0,\"※\",\"\")","v":{"$error":"#REF!"}},null,null,null,null,null,1]
[40,null,null,null,null,null,null,null,{"$f":"IF(#REF!>0,#REF!,DATEDIF(G55,H55,\"M\")+1)","v":{"$error":"#REF!"}},{"$f":"IF(#REF!>0,\"※\",\"\")","v":{"$error":"#REF!"}},null,null,null,null,null,1]
[41,null,null,null,null,null,null,null,{"$f":"IF(#REF!>0,#REF!,DATEDIF(G56,H56,\"M\")+1)","v":{"$error":"#REF!"}},{"$f":"IF(#REF!>0,\"※\",\"\")","v":{"$error":"#REF!"}},null,null,null,null,null,1]
[42,null,null,null,null,null,null,null,{"$f":"IF(#REF!>0,#REF!,DATEDIF(G57,H57,\"M\")+1)","v":{"$error":"#REF!"}},{"$f":"IF(#REF!>0,\"※\",\"\")","v":{"$error":"#REF!"}},null,null,null,null,null,1]
[43,null,null,null,null,null,null,null,{"$f":"IF(#REF!>0,#REF!,DATEDIF(G58,H58,\"M\")+1)","v":{"$error":"#REF!"}},{"$f":"IF(#REF!>0,\"※\",\"\")","v":{"$error":"#REF!"}},null,null,null,null,null,1]
[44,null,null,null,null,null,null,null,{"$f":"IF(#REF!>0,#REF!,DATEDIF(G59,H59,\"M\")+1)","v":{"$error":"#REF!"}},{"$f":"IF(#REF!>0,\"※\",\"\")","v":{"$error":"#REF!"}},null,null,null,null,null,1]
[45,null,null,null,null,null,null,null,{"$f":"IF(#REF!>0,#REF!,DATEDIF(G60,H60,\"M\")+1)","v":{"$error":"#REF!"}},{"$f":"IF(#REF!>0,\"※\",\"\")","v":{"$error":"#REF!"}},null,null,null,null,null,1]
[46,null,null,null,null,null,null,null,{"$f":"IF(#REF!>0,#REF!,DATEDIF(G61,H61,\"M\")+1)","v":{"$error":"#REF!"}},{"$f":"IF(#REF!>0,\"※\",\"\")","v":{"$error":"#REF!"}},null,null,null,null,null,1]
[47,null,null,null,null,null,null,null,{"$f":"IF(#REF!>0,#REF!,DATEDIF(G62,H62,\"M\")+1)","v":{"$error":"#REF!"}},{"$f":"IF(#REF!>0,\"※\",\"\")","v":{"$error":"#REF!"}},null,null,null,null,null,1]
[48,null,null,null,null,null,null,null,{"$f":"IF(#REF!>0,#REF!,DATEDIF(G63,H63,\"M\")+1)","v":{"$error":"#REF!"}},{"$f":"IF(#REF!>0,\"※\",\"\")","v":{"$error":"#REF!"}},null,null,null,null,null,1]
[49,null,null,null,null,null,null,null,{"$f":"IF(#REF!>0,#REF!,DATEDIF(G64,H64,\"M\")+1)","v":{"$error":"#REF!"}},{"$f":"IF(#REF!>0,\"※\",\"\")","v":{"$error":"#REF!"}},null,null,null,null,null,1]
[{"$f":"A64+1","v":50},null,null,null,null,null,null,null,{"$f":"IF(#REF!>0,#REF!,DATEDIF(G65,H65,\"M\")+1)","v":{"$error":"#REF!"}},{"$f":"IF(#REF!>0,\"※\",\"\")","v":{"$error":"#REF!"}},null,null,null,null,null,1]
[51,null,null,null,null,null,null,null,{"$f":"IF(#REF!>0,#REF!,DATEDIF(G66,H66,\"M\")+1)","v":{"$error":"#REF!"}},{"$f":"IF(#REF!>0,\"※\",\"\")","v":{"$error":"#REF!"}},null,null,null,null,null,1]
[52,null,null,null,null,null,null,null,{"$f":"IF(#REF!>0,#REF!,DATEDIF(G67,H67,\"M\")+1)","v":{"$error":"#REF!"}},{"$f":"IF(#REF!>0,\"※\",\"\")","v":{"$error":"#REF!"}},null,null,null,null,null,1]
[53,null,null,null,null,null,null,null,{"$f":"IF(#REF!>0,#REF!,DATEDIF(G68,H68,\"M\")+1)","v":{"$error":"#REF!"}},{"$f":"IF(#REF!>0,\"※\",\"\")","v":{"$error":"#REF!"}},null,null,null,null,null,1]
[54,null,null,null,null,null,null,null,{"$f":"IF(#REF!>0,#REF!,DATEDIF(G69,H69,\"M\")+1)","v":{"$error":"#REF!"}},{"$f":"IF(#REF!>0,\"※\",\"\")","v":{"$error":"#REF!"}},null,null,null,null,null,1]
[55,null,null,null,null,null,null,null,{"$f":"IF(#REF!>0,#REF!,DATEDIF(G70,H70,\"M\")+1)","v":{"$error":"#REF!"}},{"$f":"IF(#REF!>0,\"※\",\"\")","v":{"$error":"#REF!"}},null,null,null,null,null,1]
[56,null,null,null,null,null,null,null,{"$f":"IF(#REF!>0,#REF!,DATEDIF(G71,H71,\"M\")+1)","v":{"$error":"#REF!"}},{"$f":"IF(#REF!>0,\"※\",\"\")","v":{"$error":"#REF!"}},null,null,null,null,null,1]
[57,null,null,null,null,null,null,null,{"$f":"IF(#REF!>0,#REF!,DATEDIF(G72,H72,\"M\")+1)","v":{"$error":"#REF!"}},{"$f":"IF(#REF!>0,\"※\",\"\")","v":{"$error":"#REF!"}},null,null,null,null,null,1]
[58,null,null,null,null,null,null,null,{"$f":"IF(#REF!>0,#REF!,DATEDIF(G73,H73,\"M\")+1)","v":{"$error":"#REF!"}},{"$f":"IF(#REF!>0,\"※\",\"\")","v":{"$error":"#REF!"}},null,null,null,null,null,1]
[59,null,null,null,null,null,null,null,{"$f":"IF(#REF!>0,#REF!,DATEDIF(G74,H74,\"M\")+1)","v":{"$error":"#REF!"}},{"$f":"IF(#REF!>0,\"※\",\"\")","v":{"$error":"#REF!"}},null,null,null,null,null,1]
[60,null,null,null,null,null,null,null,{"$f":"IF(#REF!>0,#REF!,DATEDIF(G75,H75,\"M\")+1)","v":{"$error":"#REF!"}},{"$f":"IF(#REF!>0,\"※\",\"\")","v":{"$error":"#REF!"}},null,null,null,null,null,1]
[61,null,null,null,null,null,null,null,{"$f":"IF(#REF!>0,#REF!,DATEDIF(G76,H76,\"M\")+1)","v":{"$error":"#REF!"}},{"$f":"IF(#REF!>0,\"※\",\"\")","v":{"$error":"#REF!"}},null,null,null,null,null,1]
[62,null,null,null,null,null,null,null,{"$f":"IF(#REF!>0,#REF!,DATEDIF(G77,H77,\"M\")+1)","v":{"$error":"#REF!"}},{"$f":"IF(#REF!>0,\"※\",\"\")","v":{"$error":"#REF!"}},null,null,null,null,null,1]
[63,null,null,null,null,null,null,null,{"$f":"IF(#REF!>0,#REF!,DATEDIF(G78,H78,\"M\")+1)","v":{"$error":"#REF!"}},{"$f":"IF(#REF!>0,\"※\",\"\")","v":{"$error":"#REF!"}},null,null,null,null,null,1]
[64,null,null,null,null,null,null,null,{"$f":"IF(#REF!>0,#REF!,DATEDIF(G79,H79,\"M\")+1)","v":{"$error":"#REF!"}},{"$f":"IF(#REF!>0,\"※\",\"\")","v":{"$error":"#REF!"}},null,null,null,null,null,1]
[65,null,null,null,null,null,null,null,{"$f":"IF(#REF!>0,#REF!,DATEDIF(G80,H80,\"M\")+1)","v":{"$error":"#REF!"}},{"$f":"IF(#REF!>0,\"※\",\"\")","v":{"$error":"#REF!"}},null,null,null,null,null,1]
[66,null,null,null,null,null,null,null,{"$f":"IF(#REF!>0,#REF!,DATEDIF(G81,H81,\"M\")+1)","v":{"$error":"#REF!"}},{"$f":"IF(#REF!>0,\"※\",\"\")","v":{"$error":"#REF!"}},null,null,null,null,null,1]
[67,null,null,null,null,null,null,null,{"$f":"IF(#REF!>0,#REF!,DATEDIF(G82,H82,\"M\")+1)","v":{"$error":"#REF!"}},{"$f":"IF(#REF!>0,\"※\",\"\")","v":{"$error":"#REF!"}},null,null,null,null,null,1]
[68,null,null,null,null,null,null,null,{"$f":"IF(#REF!>0,#REF!,DATEDIF(G83,H83,\"M\")+1)","v":{"$error":"#REF!"}},{"$f":"IF(#REF!>0,\"※\",\"\")","v":{"$error":"#REF!"}},null,null,null,null,null,1]
[69,null,null,null,null,null,null,null,{"$f":"IF(#REF!>0,#REF!,DATEDIF(G84,H84,\"M\")+1)","v":{"$error":"#REF!"}},{"$f":"IF(#REF!>0,\"※\",\"\")","v":{"$error":"#REF!"}},null,null,null,null,null,1]
[70,null,null,null,null,null,null,null,{"$f":"IF(#REF!>0,#REF!,DATEDIF(G85,H85,\"M\")+1)","v":{"$error":"#REF!"}},{"$f":"IF(#REF!>0,\"※\",\"\")","v":{"$error":"#REF!"}},null,null,null,null,null,1]
[71,null,null,null,null,null,null,null,{"$f":"IF(#REF!>0,#REF!,DATEDIF(G86,H86,\"M\")+1)","v":{"$error":"#REF!"}},{"$f":"IF(#REF!>0,\"※\",\"\")","v":{"$error":"#REF!"}},null,null,null,null,null,1]
[72,null,null,null,null,null,null,null,{"$f":"IF(#REF!>0,#REF!,DATEDIF(G87,H87,\"M\")+1)","v":{"$error":"#REF!"}},{"$f":"IF(#REF!>0,\"※\",\"\")","v":{"$error":"#REF!"}},null,null,null,null,null,1]
[73,null,null,null,null,null,null,null,{"$f":"IF(#REF!>0,#REF!,DATEDIF(G88,H88,\"M\")+1)","v":{"$error":"#REF!"}},{"$f":"IF(#REF!>0,\"※\",\"\")","v":{"$error":"#REF!"}},null,null,null,null,null,1]
[74,null,null,null,null,null,null,null,{"$f":"IF(#REF!>0,#REF!,DATEDIF(G89,H89,\"M\")+1)","v":{"$error":"#REF!"}},{"$f":"IF(#REF!>0,\"※\",\"\")","v":{"$error":"#REF!"}},null,null,null,null,null,1]
[75,null,null,null,null,null,null,null,{"$f":"IF(#REF!>0,#REF!,DATEDIF(G90,H90,\"M\")+1)","v":{"$error":"#REF!"}},{"$f":"IF(#REF!>0,\"※\",\"\")","v":{"$error":"#REF!"}},null,null,null,null,null,1]
[76,null,null,null,null,null,null,null,{"$f":"IF(#REF!>0,#REF!,DATEDIF(G91,H91,\"M\")+1)","v":{"$error":"#REF!"}},{"$f":"IF(#REF!>0,\"※\",\"\")","v":{"$error":"#REF!"}},null,null,null,null,null,1]
[77,null,null,null,null,null,null,null,{"$f":"IF(#REF!>0,#REF!,DATEDIF(G92,H92,\"M\")+1)","v":{"$error":"#REF!"}},{"$f":"IF(#REF!>0,\"※\",\"\")","v":{"$error":"#REF!"}},null,null,null,null,null,1]
[78,null,null,null,null,null,null,null,{"$f":"IF(#REF!>0,#REF!,DATEDIF(G93,H93,\"M\")+1)","v":{"$error":"#REF!"}},{"$f":"IF(#REF!>0,\"※\",\"\")","v":{"$error":"#REF!"}},null,null,null,null,null,1]
[79,null,null,null,null,null,null,null,{"$f":"IF(#REF!>0,#REF!,DATEDIF(G94,H94,\"M\")+1)","v":{"$error":"#REF!"}},{"$f":"IF(#REF!>0,\"※\",\"\")","v":{"$error":"#REF!"}},null,null,null,null,null,1]
[80,null,null,null,null,null,null,null,{"$f":"IF(#REF!>0,#REF!,DATEDIF(G95,H95,\"M\")+1)","v":{"$error":"#REF!"}},{"$f":"IF(#REF!>0,\"※\",\"\")","v":{"$error":"#REF!"}},null,null,null,null,null,1]
[81,null,null,null,null,null,null,null,{"$f":"IF(#REF!>0,#REF!,DATEDIF(G96,H96,\"M\")+1)","v":{"$error":"#REF!"}},{"$f":"IF(#REF!>0,\"※\",\"\")","v":{"$error":"#REF!"}},null,null,null,null,null,1]
[82,null,null,null,null,null,null,null,{"$f":"IF(#REF!>0,#REF!,DATEDIF(G97,H97,\"M\")+1)","v":{"$error":"#REF!"}},{"$f":"IF(#REF!>0,\"※\",\"\")","v":{"$error":"#REF!"}},null,null,null,null,null,1]
[83,null,null,null,null,null,null,null,{"$f":"IF(#REF!>0,#REF!,DATEDIF(G98,H98,\"M\")+1)","v":{"$error":"#REF!"}},{"$f":"IF(#REF!>0,\"※\",\"\")","v":{"$error":"#REF!"}},null,null,null,null,null,1]
[84,null,null,null,null,null,null,null,{"$f":"IF(#REF!>0,#REF!,DATEDIF(G99,H99,\"M\")+1)","v":{"$error":"#REF!"}},{"$f":"IF(#REF!>0,\"※\",\"\")","v":{"$error":"#REF!"}},null,null,null,null,null,1]
[85,null,null,null,null,null,null,null,{"$f":"IF(#REF!>0,#REF!,DATEDIF(G100,H100,\"M\")+1)","v":{"$error":"#REF!"}},{"$f":"IF(#REF!>0,\"※\",\"\")","v":{"$error":"#REF!"}},null,null,null,null,null,1]
[86,null,null,null,null,null,null,null,{"$f":"IF(#REF!>0,#REF!,DATEDIF(G101,H101,\"M\")+1)","v":{"$error":"#REF!"}},{"$f":"IF(#REF!>0,\"※\",\"\")","v":{"$error":"#REF!"}},null,null,null,null,null,1]
[87,null,null,null,null,null,null,null,{"$f":"IF(#REF!>0,#REF!,DATEDIF(G102,H102,\"M\")+1)","v":{"$error":"#REF!"}},{"$f":"IF(#REF!>0,\"※\",\"\")","v":{"$error":"#REF!"}},null,null,null,null,null,1]
[88,null,null,null,null,null,null,null,{"$f":"IF(#REF!>0,#REF!,DATEDIF(G103,H103,\"M\")+1)","v":{"$error":"#REF!"}},{"$f":"IF(#REF!>0,\"※\",\"\")","v":{"$error":"#REF!"}},null,null,null,null,null,1]
[89,null,null,null,null,null,null,null,{"$f":"IF(#REF!>0,#REF!,DATEDIF(G104,H104,\"M\")+1)","v":{"$error":"#REF!"}},{"$f":"IF(#REF!>0,\"※\",\"\")","v":{"$error":"#REF!"}},null,null,null,null,null,1]
[90,null,null,null,null,null,null,null,{"$f":"IF(#REF!>0,#REF!,DATEDIF(G105,H105,\"M\")+1)","v":{"$error":"#REF!"}},{"$f":"IF(#REF!>0,\"※\",\"\")","v":{"$error":"#REF!"}},null,null,null,null,null,1]
[91,null,null,null,null,null,null,null,{"$f":"IF(#REF!>0,#REF!,DATEDIF(G106,H106,\"M\")+1)","v":{"$error":"#REF!"}},{"$f":"IF(#REF!>0,\"※\",\"\")","v":{"$error":"#REF!"}},null,null,null,null,null,1]
[92,null,null,null,null,null,null,null,{"$f":"IF(#REF!>0,#REF!,DATEDIF(G107,H107,\"M\")+1)","v":{"$error":"#REF!"}},{"$f":"IF(#REF!>0,\"※\",\"\")","v":{"$error":"#REF!"}},null,null,null,null,null,1]
[93,null,null,null,null,null,null,null,{"$f":"IF(#REF!>0,#REF!,DATEDIF(G108,H108,\"M\")+1)","v":{"$error":"#REF!"}},{"$f":"IF(#REF!>0,\"※\",\"\")","v":{"$error":"#REF!"}},null,null,null,null,null,1]
[94,null,null,null,null,null,null,null,{"$f":"IF(#REF!>0,#REF!,DATEDIF(G109,H109,\"M\")+1)","v":{"$error":"#REF!"}},{"$f":"IF(#REF!>0,\"※\",\"\")","v":{"$error":"#REF!"}},null,null,null,null,null,1]
[95,null,null,null,null,null,null,null,{"$f":"IF(#REF!>0,#REF!,DATEDIF(G110,H110,\"M\")+1)","v":{"$error":"#REF!"}},{"$f":"IF(#REF!>0,\"※\",\"\")","v":{"$error":"#REF!"}},null,null,null,null,null,1]
[96,null,null,null,null,null,null,null,{"$f":"IF(#REF!>0,#REF!,DATEDIF(G111,H111,\"M\")+1)","v":{"$error":"#REF!"}},{"$f":"IF(#REF!>0,\"※\",\"\")","v":{"$error":"#REF!"}},null,null,null,null,null,1]
[{"$f":"A111+1","v":97},null,null,null,null,null,null,null,{"$f":"IF(#REF!>0,#REF!,DATEDIF(G112,H112,\"M\")+1)","v":{"$error":"#REF!"}},{"$f":"IF(#REF!>0,\"※\",\"\")","v":{"$error":"#REF!"}},null,null,null,null,null,1]
[98,null,null,null,null,null,null,null,{"$f":"IF(#REF!>0,#REF!,DATEDIF(G113,H113,\"M\")+1)","v":{"$error":"#REF!"}},{"$f":"IF(#REF!>0,\"※\",\"\")","v":{"$error":"#REF!"}},null,null,null,null,null,1]
[99,null,null,null,null,null,null,null,{"$f":"IF(#REF!>0,#REF!,DATEDIF(G114,H114,\"M\")+1)","v":{"$error":"#REF!"}},{"$f":"IF(#REF!>0,\"※\",\"\")","v":{"$error":"#REF!"}},null,null,null,null,null,1]
[100,null,null,null,null,null,null,null,{"$f":"IF(#REF!>0,#REF!,DATEDIF(G115,H115,\"M\")+1)","v":{"$error":"#REF!"}},{"$f":"IF(#REF!>0,\"※\",\"\")","v":{"$error":"#REF!"}},null,null,null,null,null,1]
[101,null,null,null,null,null,null,null,{"$f":"IF(#REF!>0,#REF!,DATEDIF(G116,H116,\"M\")+1)","v":{"$error":"#REF!"}},{"$f":"IF(#REF!>0,\"※\",\"\")","v":{"$error":"#REF!"}},null,null,null,null,null,1]
[102,null,null,null,null,null,null,null,{"$f":"IF(#REF!>0,#REF!,DATEDIF(G117,H117,\"M\")+1)","v":{"$error":"#REF!"}},{"$f":"IF(#REF!>0,\"※\",\"\")","v":{"$error":"#REF!"}},null,null,null,null,null,1]
[103,null,null,null,null,null,null,null,{"$f":"IF(#REF!>0,#REF!,DATEDIF(G118,H118,\"M\")+1)","v":{"$error":"#REF!"}},{"$f":"IF(#REF!>0,\"※\",\"\")","v":{"$error":"#REF!"}},null,null,null,null,null,1]
[104,null,null,null,null,null,null,null,{"$f":"IF(#REF!>0,#REF!,DATEDIF(G119,H119,\"M\")+1)","v":{"$error":"#REF!"}},{"$f":"IF(#REF!>0,\"※\",\"\")","v":{"$error":"#REF!"}},null,null,null,null,null,1]
[105,null,null,null,null,null,null,null,{"$f":"IF(#REF!>0,#REF!,DATEDIF(G120,H120,\"M\")+1)","v":{"$error":"#REF!"}},{"$f":"IF(#REF!>0,\"※\",\"\")","v":{"$error":"#REF!"}},null,null,null,null,null,1]
[106,null,null,null,null,null,null,null,{"$f":"IF(#REF!>0,#REF!,DATEDIF(G121,H121,\"M\")+1)","v":{"$error":"#REF!"}},{"$f":"IF(#REF!>0,\"※\",\"\")","v":{"$error":"#REF!"}},null,null,null,null,null,1]
[107,null,null,null,null,null,null,null,{"$f":"IF(#REF!>0,#REF!,DATEDIF(G122,H122,\"M\")+1)","v":{"$error":"#REF!"}},{"$f":"IF(#REF!>0,\"※\",\"\")","v":{"$error":"#REF!"}},null,null,null,null,null,1]
[108,null,null,null,null,null,null,null,{"$f":"IF(#REF!>0,#REF!,DATEDIF(G123,H123,\"M\")+1)","v":{"$error":"#REF!"}},{"$f":"IF(#REF!>0,\"※\",\"\")","v":{"$error":"#REF!"}},null,null,null,null,null,1]
[109,null,null,null,null,null,null,null,{"$f":"IF(#REF!>0,#REF!,DATEDIF(G124,H124,\"M\")+1)","v":{"$error":"#REF!"}},{"$f":"IF(#REF!>0,\"※\",\"\")","v":{"$error":"#REF!"}},null,null,null,null,null,1]
[110,null,null,null,null,null,null,null,{"$f":"IF(#REF!>0,#REF!,DATEDIF(G125,H125,\"M\")+1)","v":{"$error":"#REF!"}},{"$f":"IF(#REF!>0,\"※\",\"\")","v":{"$error":"#REF!"}},null,null,null,null,null,1]

{"sheet":"地域、区分から検索","index":1,"n_rows":29,"n_cols":118,"rows_kept":29,"cut":false,"hidden":false,"merged":[[0,0,0,122],[4,1,28,79],[4,96,4,99],[4,103,4,116],[4,117,4,120],[5,83,5,95],[5,104,5,116],[5,117,5,120],[6,83,9,88],[8,89,8,95],[8,96,8,99],[8,104,8,116],[8,117,8,120],[9,89,9,95],[9,96,9,99],[9,104,9,116],[9,117,9,120],[6,89,6,95],[6,96,6,99],[6,104,6,116],[6,117,6,120],[7,89,7,95],[7,96,7,99],[7,104,7,116],[7,117,7,120],[10,83,15,88],[10,89,10,95],[10,96,10,99],[10,104,10,116],[10,117,10,120],[11,89,11,95],[11,96,11,99],[11,104,11,116],[11,117,11,120],[12,89,12,95],[14,89,14,95],[14,96,14,99],[14,104,14,116],[14,117,14,120],[15,89,15,95],[15,96,15,99],[15,104,15,116],[15,117,15,120],[12,96,12,99],[12,104,12,116],[12,117,12,120],[13,89,13,95],[13,96,13,99],[13,104,13,116],[13,117,13,120],[16,83,18,88],[16,89,16,95],[16,96,16,99],[16,104,16,116],[16,117,16,120],[17,89,17,95],[17,96,17,99],[17,104,17,116],[17,117,17,120],[18,89,18,95],[18,96,18,99],[18,104,18,116],[18,117,18,120],[22,89,22,95],[22,96,22,99],[19,89,19,95],[19,96,19,99],[20,89,20,95],[20,96,20,99],[23,89,23,95],[23,96,23,99],[21,89,21,95],[21,96,21,99],[19,104,28,124],[4,89,4,95],[4,83,4,88],[2,103,3,120],[2,83,3,99],[28,83,28,88],[28,89,28,95],[28,96,28,99],[26,89,26,95],[26,96,26,99],[27,89,27,95],[27,96,27,99],[19,83,27,88],[24,89,24,95],[24,96,24,99],[25,89,25,95],[25,96,25,99]]}
["令和２年度　発注の見通しの公表について(令和３年１月現在）【工事】"]
[]
[null,null,null,null,null,null,null,null,null,null,null,null,null,null,null,null,null,null,null,null,null,null,null,null,null,null,null,null,null,null,null,null,null,null,null,null,null,null,null,null,null,null,null,null,null,null,null,null,null,null,null,null,null,null,null,null,null,null,null,null,null,null,null,null,null,null,null,null,null,null,null,null,null,null,null,null,null,null,null,null,null,null,null,"地域グループ",null,null,null,null,null,null,null,null,null,null,null,null,null,null,null,null,null,null,null,"区分グループ"]
[]
[null,null,null,null,null,null,null,null,null,null,null,null,null,null,null,null,null,null,null,null,null,null,null,null,null,null,null,null,null,null,null,null,null,null,null,null,null,null,null,null,null,null,null,null,null,null,null,null,null,null,null,null,null,null,null,null,null,null,null,null,null,null,null,null,null,null,null,null,null,null,null,null,null,null,null,null,null,null,null,null,null,null,null,"地区",null,null,null,null,null,"地域",null,null,null,null,null,null,"件数",null,null,null,null,null,null,"区分",null,null,null,null,null,null,null,null,null,null,null,null,null,"件数"]
[]
[null,null,null,null,null,null,null,null,null,null,null,null,null,null,null,null,null,null,null,null,null,null,null,null,null,null,null,null,null,null,null,null,null,null,null,null,null,null,null,null,null,null,null,null,null,null,null,null,null,null,null,null,null,null,null,null,null,null,null,null,null,null,null,null,null,null,null,null,null,null,null,null,null,null,null,null,null,null,null,null,null,null,null,"北海道",null,null,null,null,null,"道東",null,null,null,null,null,null,{"$f":"'地域、区分検索結果'!AA5","v":2},null,null,null,null,null,null,null,"土木工事業",null,null,null,null,null,null,null,null,null,null,null,null,{"$f":"'地域、区分検索結果'!BA5","v":3}]
[null,null,null,null,null,null,null,null,null,null,null,null,null,null,null,null,null,null,null,null,null,null,null,null,null,null,null,null,null,null,null,null,null,null,null,null,null,null,null,null,null,null,null,null,null,null,null,null,null,null,null,null,null,null,null,null,null,null,null,null,null,null,null,null,null,null,null,null,null,null,null,null,null,null,null,null,null,null,null,null,null,null,null,null,null,null,null,null,null,"道央",null,null,null,null,null,null,{"$f":"'地域、区分検索結果'!AB5","v":4},null,null,null,null,null,null,null,"建築工事業",null,null,null,null,null,null,null,null,null,null,null,null,{"$f":"'地域、区分検索結果'!BB5","v":3}]
[null,null,null,null,null,null,null,null,null,null,null,null,null,null,null,null,null,null,null,null,null,null,null,null,null,null,null,null,null,null,null,null,null,null,null,null,null,null,null,null,null,null,null,null,null,null,null,null,null,null,null,null,null,null,null,null,null,null,null,null,null,null,null,null,null,null,null,null,null,null,null,null,null,null,null,null,null,null,null,null,null,null,null,null,null,null,null,null,null,"道北",null,null,null,null,null,null,{"$f":"'地域、区分検索結果'!AC5","v":4},null,null,null,null,null,null,null,"電気工事業",null,null,null,null,null,null,null,null,null,null,null,null,{"$f":"'地域、区分検索結果'!BC5","v":9}]
[null,null,null,null,null,null,null,null,null,null,null,null,null,null,null,null,null,null,null,null,null,null,null,null,null,null,null,null,null,null,null,null,null,null,null,null,null,null,null,null,null,null,null,null,null,null,null,null,null,null,null,null,null,null,null,null,null,null,null,null,null,null,null,null,null,null,null,null,null,null,null,null,null,null,null,null,null,null,null,null,null,null,null,null,null,null,null,null,null,"道南",null,null,null,null,null,null,{"$f":"'地域、区分検索結果'!AD5","v":5},null,null,null,null,null,null,null,"管工事業",null,null,null,null,null,null,null,null,null,null,null,null,{"$f":"'地域、区分検索結果'!BD5","v":0}]
[null,null,null,null,null,null,null,null,null,null,null,null,null,null,null,null,null,null,null,null,null,null,null,null,null,null,null,null,null,null,null,null,null,null,null,null,null,null,null,null,null,null,null,null,null,null,null,null,null,null,null,null,null,null,null,null,null,null,null,null,null,null,null,null,null,null,null,null,null,null,null,null,null,null,null,null,null,null,null,null,null,null,null,"東北",null,null,null,null,null,"青森",null,null,null,null,null,null,{"$f":"'地域、区分検索結果'!AE5","v":1},null,null,null,null,null,null,null,"綱構造物工事業",null,null,null,null,null,null,null,null,null,null,null,null,{"$f":"'地域、区分検索結果'!BE5","v":0}]
[null,null,null,null,null,null,null,null,null,null,null,null,null,null,null,null,null,null,null,null,null,null,null,null,null,null,null,null,null,null,null,null,null,null,null,null,null,null,null,null,null,null,null,null,null,null,null,null,null,null,null,null,null,null,null,null,null,null,null,null,null,null,null,null,null,null,null,null,null,null,null,null,null,null,null,null,null,null,null,null,null,null,null,null,null,null,null,null,null,"岩手",null,null,null,null,null,null,{"$f":"'地域、区分検索結果'!AF5","v":0},null,null,null,null,null,null,null,"ほ装工事業",null,null,null,null,null,null,null,null,null,null,null,null,{"$f":"'地域、区分検索結果'!BF5","v":4}]
[null,null,null,null,null,null,null,null,null,null,null,null,null,null,null,null,null,null,null,null,null,null,null,null,null,null,null,null,null,null,null,null,null,null,null,null,null,null,null,null,null,null,null,null,null,null,null,null,null,null,null,null,null,null,null,null,null,null,null,null,null,null,null,null,null,null,null,null,null,null,null,null,null,null,null,null,null,null,null,null,null,null,null,null,null,null,null,null,null,"宮城",null,null,null,null,null,null,{"$f":"'地域、区分検索結果'!AG5","v":3},null,null,null,null,null,null,null,"塗装工事業",null,null,null,null,null,null,null,null,null,null,null,null,{"$f":"'地域、区分検索結果'!BG5","v":0}]
[null,null,null,null,null,null,null,null,null,null,null,null,null,null,null,null,null,null,null,null,null,null,null,null,null,null,null,null,null,null,null,null,null,null,null,null,null,null,null,null,null,null,null,null,null,null,null,null,null,null,null,null,null,null,null,null,null,null,null,null,null,null,null,null,null,null,null,null,null,null,null,null,null,null,null,null,null,null,null,null,null,null,null,null,null,null,null,null,null,"秋田",null,null,null,null,null,null,{"$f":"'地域、区分検索結果'!AH5","v":1},null,null,null,null,null,null,null,"機械器具設置工事業",null,null,null,null,null,null,null,null,null,null,null,null,{"$f":"'地域、区分検索結果'!BH5","v":0}]
[null,null,null,null,null,null,null,null,null,null,null,null,null,null,null,null,null,null,null,null,null,null,null,null,null,null,null,null,null,null,null,null,null,null,null,null,null,null,null,null,null,null,null,null,null,null,null,null,null,null,null,null,null,null,null,null,null,null,null,null,null,null,null,null,null,null,null,null,null,null,null,null,null,null,null,null,null,null,null,null,null,null,null,null,null,null,null,null,null,"山形",null,null,null,null,null,null,{"$f":"'地域、区分検索結果'!AI5","v":1},null,null,null,null,null,null,null,"電気通信工事業",null,null,null,null,null,null,null,null,null,null,null,null,{"$f":"'地域、区分検索結果'!BI5","v":18}]
[null,null,null,null,null,null,null,null,null,null,null,null,null,null,null,null,null,null,null,null,null,null,null,null,null,null,null,null,null,null,null,null,null,null,null,null,null,null,null,null,null,null,null,null,null,null,null,null,null,null,null,null,null,null,null,null,null,null,null,null,null,null,null,null,null,null,null,null,null,null,null,null,null,null,null,null,null,null,null,null,null,null,null,null,null,null,null,null,null,"福島",null,null,null,null,null,null,{"$f":"'地域、区分検索結果'!AJ5","v":0},null,null,null,null,null,null,null,"造園工事業",null,null,null,null,null,null,null,null,null,null,null,null,{"$f":"'地域、区分検索結果'!BJ5","v":0}]
[null,null,null,null,null,null,null,null,null,null,null,null,null,null,null,null,null,null,null,null,null,null,null,null,null,null,null,null,null,null,null,null,null,null,null,null,null,null,null,null,null,null,null,null,null,null,null,null,null,null,null,null,null,null,null,null,null,null,null,null,null,null,null,null,null,null,null,null,null,null,null,null,null,null,null,null,null,null,null,null,null,null,null,"北陸",null,null,null,null,null,"新潟",null,null,null,null,null,null,{"$f":"'地域、区分検索結果'!AT5","v":4},null,null,null,null,null,null,null,"水道施設工事業",null,null,null,null,null,null,null,null,null,null,null,null,{"$f":"'地域、区分検索結果'!BK5","v":0}]
[null,null,null,null,null,null,null,null,null,null,null,null,null,null,null,null,null,null,null,null,null,null,null,null,null,null,null,null,null,null,null,null,null,null,null,null,null,null,null,null,null,null,null,null,null,null,null,null,null,null,null,null,null,null,null,null,null,null,null,null,null,null,null,null,null,null,null,null,null,null,null,null,null,null,null,null,null,null,null,null,null,null,null,null,null,null,null,null,null,"-",null,null,null,null,null,null,"-",null,null,null,null,null,null,null,"消防施設",null,null,null,null,null,null,null,null,null,null,null,null,{"$f":"'地域、区分検索結果'!BL5","v":0}]
[null,null,null,null,null,null,null,null,null,null,null,null,null,null,null,null,null,null,null,null,null,null,null,null,null,null,null,null,null,null,null,null,null,null,null,null,null,null,null,null,null,null,null,null,null,null,null,null,null,null,null,null,null,null,null,null,null,null,null,null,null,null,null,null,null,null,null,null,null,null,null,null,null,null,null,null,null,null,null,null,null,null,null,null,null,null,null,null,null,"-",null,null,null,null,null,null,"-"]
[null,null,null,null,null,null,null,null,null,null,null,null,null,null,null,null,null,null,null,null,null,null,null,null,null,null,null,null,null,null,null,null,null,null,null,null,null,null,null,null,null,null,null,null,null,null,null,null,null,null,null,null,null,null,null,null,null,null,null,null,null,null,null,null,null,null,null,null,null,null,null,null,null,null,null,null,null,null,null,null,null,null,null,"関東",null,null,null,null,null,"茨城",null,null,null,null,null,null,{"$f":"'地域、区分検索結果'!AK5","v":3},null,null,null,null,null,null,null,"【備考】\n・地域グループの件数については、該当地域内に複数該当する場合は複数のカウントで計上しています。"]
[null,null,null,null,null,null,null,null,null,null,null,null,null,null,null,null,null,null,null,null,null,null,null,null,null,null,null,null,null,null,null,null,null,null,null,null,null,null,null,null,null,null,null,null,null,null,null,null,null,null,null,null,null,null,null,null,null,null,null,null,null,null,null,null,null,null,null,null,null,null,null,null,null,null,null,null,null,null,null,null,null,null,null,null,null,null,null,null,null,"栃木",null,null,null,null,null,null,{"$f":"'地域、区分検索結果'!AL5","v":0}]
[null,null,null,null,null,null,null,null,null,null,null,null,null,null,null,null,null,null,null,null,null,null,null,null,null,null,null,null,null,null,null,null,null,null,null,null,null,null,null,null,null,null,null,null,null,null,null,null,null,null,null,null,null,null,null,null,null,null,null,null,null,null,null,null,null,null,null,null,null,null,null,null,null,null,null,null,null,null,null,null,null,null,null,null,null,null,null,null,null,"群馬",null,null,null,null,null,null,{"$f":"'地域、区分検索結果'!AM5","v":0}]
[null,null,null,null,null,null,null,null,null,null,null,null,null,null,null,null,null,null,null,null,null,null,null,null,null,null,null,null,null,null,null,null,null,null,null,null,null,null,null,null,null,null,null,null,null,null,null,null,null,null,null,null,null,null,null,null,null,null,null,null,null,null,null,null,null,null,null,null,null,null,null,null,null,null,null,null,null,null,null,null,null,null,null,null,null,null,null,null,null,"埼玉",null,null,null,null,null,null,{"$f":"'地域、区分検索結果'!AN5","v":1}]
[null,null,null,null,null,null,null,null,null,null,null,null,null,null,null,null,null,null,null,null,null,null,null,null,null,null,null,null,null,null,null,null,null,null,null,null,null,null,null,null,null,null,null,null,null,null,null,null,null,null,null,null,null,null,null,null,null,null,null,null,null,null,null,null,null,null,null,null,null,null,null,null,null,null,null,null,null,null,null,null,null,null,null,null,null,null,null,null,null,"千葉",null,null,null,null,null,null,{"$f":"'地域、区分検索結果'!AO5","v":2}]
[null,null,null,null,null,null,null,null,null,null,null,null,null,null,null,null,null,null,null,null,null,null,null,null,null,null,null,null,null,null,null,null,null,null,null,null,null,null,null,null,null,null,null,null,null,null,null,null,null,null,null,null,null,null,null,null,null,null,null,null,null,null,null,null,null,null,null,null,null,null,null,null,null,null,null,null,null,null,null,null,null,null,null,null,null,null,null,null,null,"東京",null,null,null,null,null,null,{"$f":"'地域、区分検索結果'!AP5","v":13}]
[null,null,null,null,null,null,null,null,null,null,null,null,null,null,null,null,null,null,null,null,null,null,null,null,null,null,null,null,null,null,null,null,null,null,null,null,null,null,null,null,null,null,null,null,null,null,null,null,null,null,null,null,null,null,null,null,null,null,null,null,null,null,null,null,null,null,null,null,null,null,null,null,null,null,null,null,null,null,null,null,null,null,null,null,null,null,null,null,null,"神奈川",null,null,null,null,null,null,{"$f":"'地域、区分検索結果'!AQ5","v":1}]
[null,null,null,null,null,null,null,null,null,null,null,null,null,null,null,null,null,null,null,null,null,null,null,null,null,null,null,null,null,null,null,null,null,null,null,null,null,null,null,null,null,null,null,null,null,null,null,null,null,null,null,null,null,null,null,null,null,null,null,null,null,null,null,null,null,null,null,null,null,null,null,null,null,null,null,null,null,null,null,null,null,null,null,null,null,null,null,null,null,"山梨",null,null,null,null,null,null,{"$f":"'地域、区分検索結果'!AR5","v":0}]
[null,null,null,null,null,null,null,null,null,null,null,null,null,null,null,null,null,null,null,null,null,null,null,null,null,null,null,null,null,null,null,null,null,null,null,null,null,null,null,null,null,null,null,null,null,null,null,null,null,null,null,null,null,null,null,null,null,null,null,null,null,null,null,null,null,null,null,null,null,null,null,null,null,null,null,null,null,null,null,null,null,null,null,null,null,null,null,null,null,"長野",null,null,null,null,null,null,{"$f":"'地域、区分検索結果'!AS5","v":0}]
[null,null,null,null,null,null,null,null,null,null,null,null,null,null,null,null,null,null,null,null,null,null,null,null,null,null,null,null,null,null,null,null,null,null,null,null,null,null,null,null,null,null,null,null,null,null,null,null,null,null,null,null,null,null,null,null,null,null,null,null,null,null,null,null,null,null,null,null,null,null,null,null,null,null,null,null,null,null,null,null,null,null,null,"中部",null,null,null,null,null,"静岡",null,null,null,null,null,null,{"$f":"'地域、区分検索結果'!AU5","v":0}]

{"sheet":"地域、区分検索結果","index":2,"n_rows":126,"n_cols":79,"rows_kept":126,"cut":false,"hidden":false,"merged":[[12,26,12,29],[2,67,3,67],[2,68,3,68],[2,69,3,69],[2,70,3,70],[2,71,3,71],[2,72,3,72],[2,73,3,73],[2,74,3,74],[2,52,3,52],[2,53,3,53],[2,54,3,54],[2,55,3,55],[2,56,3,56],[2,57,3,57],[2,58,3,58],[2,59,3,59],[2,60,3,60],[2,31,3,31],[2,32,3,32],[2,33,3,33],[2,34,3,34],[2,35,3,35],[13,0,14,0],[13,16,14,16],[13,53,14,53],[13,35,14,35],[13,36,14,36],[13,37,14,37],[13,1,14,1],[13,2,14,2],[13,3,14,3],[13,4,13,5],[13,13,14,13],[13,26,14,26],[13,27,14,27],[13,12,14,12],[13,39,14,39],[13,40,14,40],[13,41,14,41],[13,42,14,42],[13,43,14,43],[13,30,14,30],[13,18,14,18],[2,78,3,78],[4,0,4,13],[6,0,6,13],[6,52,6,55],[2,30,3,30],[2,63,3,63],[2,64,3,64],[2,65,3,65],[2,66,3,66],[2,42,3,42],[2,43,3,43],[2,44,3,44],[2,45,3,45],[2,36,3,36],[2,37,3,37],[2,38,3,38],[2,39,3,39],[2,40,3,40],[2,75,3,75],[2,76,3,76],[2,77,3,77],[2,61,3,61],[2,62,3,62],[2,46,3,46],[10,0,10,13],[5,0,5,13],[13,56,14,56],[13,59,14,59],[2,29,3,29],[0,12,0,13],[2,0,2,13],[2,26,3,26],[2,27,3,27],[2,28,3,28],[3,1,3,11],[2,41,3,41],[7,1,7,3],[8,1,8,3],[11,0,11,13],[7,5,7,10],[8,5,9,10],[13,55,14,55],[13,44,14,44],[13,54,14,54],[12,0,12,13],[13,33,14,33],[13,28,14,28],[13,29,14,29],[13,78,14,78],[13,66,14,66],[13,65,14,65],[13,64,14,64],[13,63,14,63],[13,38,14,38],[13,6,13,9],[13,17,14,17],[13,62,14,62],[13,61,14,61],[13,60,14,60],[13,58,14,58],[13,57,14,57],[13,10,14,10],[13,34,14,34],[13,11,14,11],[13,45,14,45],[13,46,14,46],[13,52,14,52],[13,31,14,31],[13,32,14,32]]}
[null,null,null,null,null,null,null,null,null,null,null,null,"東京航空局"]
[]
[{"$f":"'地域、区分から検索'!A1","v":"令和２年度　発注の見通しの公表について(令和３年１月現在）【工事】"},null,null,null,null,null,null,null,null,null,null,null,null,null,null,null,null,null,null,null,null,null,null,null,null,null,"道東","道央","道北","道南","青森","岩手","宮城","秋田","山形","福島","茨城","栃木","群馬","埼玉","千葉","東京","神奈川","山梨","長野","新潟","鈴岡",null,null,null,null,null,"土木","建築","電気工事","管","鋼構造物","ほ装","塗装","機械器具","電気通信","造園","水道","消防",null,null,null,null,null,null,null,null,null,null,null,null,null,null,"マクロリセット用"]
[]
[null,null,null,null,null,null,null,null,null,null,null,null,null,null,null,null,null,null,null,null,null,null,null,null,null,null,{"$f":"SUM(AA16:AA126)","v":2},4,4,5,1,0,3,1,1,0,3,0,0,1,2,13,1,0,0,4,0,null,null,null,null,null,{"$f":"SUM(BA16:BA126)","v":3},3,9,0,0,4,0,0,18,0,0,0,null,null,null,null,null,null,null,null,null,null,null,null,null,null,{"$f":"SUM(CA16:CA126)","v":7}]
["  東京航空局における令和２年度の発注の見通しについて、下記のとおり公表します。\n  実際に発注する案件がこの掲載と異なる場合、ここに掲載されない案件が発注される場合があります。"]
[]
["概要：",{"$f":"一覧表から検索!B8","v":"令和３年１月１日現在の計画等"},null,null,null,{"$f":"IF(COUNTA($A$16:$BM$126)<>SUBTOTAL(3,$A$16:$BM$126),\"フィルター動作中\",\"フィルター解除中\")","v":"フィルター動作中"}]
["分類：",{"$f":"一覧表から検索!B9","v":"工事"},null,null,null,"・↑：「フィルター動作中」表示されない場合、「一覧から検索」シートでの操作をお願いします。"]
[]
["１．当該月の計画又は実施案件：■（セルを緑系網掛で表示）"]
["２．新規に追加した案件　　　：■（セルを黄色系網掛で表示）なお、新規案件が当該月の計画又は実施案件の予定の場合は緑系網掛で表示",null,null,null,null,null,null,null,null,null,null,null,null,null,null,null,17,null,null,20,null,null,null,null,null,null,27,null,null,null,null,null,null,null,null,null,null,null,null,null,null,null,null,null,null,null,47,null,null,null,null,null,53,null,null,null,null,null,null,60,null,null,null,null,null,null,null,null,null,null,null,null,null,null,null,null,null,null,79]
["３．修正した項目　　　　　　：赤文字又は取消し線（削除のみの場合）",null,null,null,null,null,null,null,null,null,null,null,null,null,null,null,null,null,null,null,null,null,null,null,null,null,"別式",null,null,null,null,null,null,null,null,null,null,null,null,null,null,null,null,null,null,null,null,null,null,null,null,null,null,null,null,null,null,null,null,null,null,null,null,null,null,null,null,null,null,null,null,null,null,null,null,null,null,null,"注"]
["ＮＯ","官署名","入札方式等","計画名称等","工事の場所",null,"計画時期",null,null,null,"計画工事種別","工事の概要","参考\n（入札予定時期）","参考\n（公告予定時期）",null,null,"選定案件","課室名","事情により「期間（目安）」を手入力する場合",null,null,null,null,null,null,null,"道東","道央","道北","道南","青森","岩手","宮城","秋田","山形","福島","茨城","栃木","群馬","埼玉","千葉","東京","神奈川","山梨","長野","新潟","静岡",null,null,null,null,null,"土木","建築","電気工事","管","鋼構造物","ほ装","塗装","機械器具","電気通信","造園","水道","消防",null,null,null,null,null,null,null,null,null,null,null,null,null,null,"マクロ"]
[null,null,null,null,"都道府県","都道府県・区・市町村\n空港名等の場所","自","至","期間\n（目安）"]
[1,"東京航空局","一般競争","新潟空港雨水排水管土砂撤去等工事","新潟県","新潟県新潟市\n新潟空港","2021-04-01","2021-07-01",4,null,"土木工事","新潟空港の雨水排水管の土砂撤去等","第1四半期\n（令和3年度）","第4四半期",null,null,null,"土建課",null,null,null,null,null,null,null,null,{"$f":"COUNTIF($F16,\"*中標津*\")+COUNTIF($F16,\"*釧路*\")+COUNTIF($F16,\"*帯広*\")","v":0},{"$f":"COUNTIF($F16,\"*丘珠*\")+COUNTIF($F16,\"*新千歳*\")","v":0},{"$f":"COUNTIF($F16,\"*稚内*\")+COUNTIF($F16,\"*礼文*\")+COUNTIF($F16,\"*利尻*\")+COUNTIF($F16,\"*紋別*\")+COUNTIF($F16,\"*女満別*\")+COUNTIF($F16,\"*旭川*\")","v":0},{"$f":"COUNTIF($F16,\"*函館*\")+COUNTIF($F16,\"*奥尻*\")","v":0},{"$f":"IF(COUNTIF($E16,\"*青森*\"),1,0)","v":0},{"$f":"IF(COUNTIF($E16,\"*岩手*\"),1,0)","v":0},{"$f":"IF(COUNTIF($E16,\"*宮城*\"),1,0)","v":0},{"$f":"IF(COUNTIF($E16,\"*秋田*\"),1,0)","v":0},{"$f":"IF(COUNTIF($E16,\"*山形*\"),1,0)","v":0},{"$f":"IF(COUNTIF($E16,\"*福島*\"),1,0)","v":0},{"$f":"IF(COUNTIF($E16,\"*茨城*\"),1,0)","v":0},{"$f":"IF(COUNTIF($E16,\"*栃木*\"),1,0)","v":0},null,{"$f":"IF(COUNTIF($E16,\"*埼玉*\"),1,0)","v":0},{"$f":"IF(COUNTIF($E16,\"*千葉*\"),1,0)","v":0},{"$f":"IF(COUNTIF($E16,\"*東京*\"),1,0)","v":0},{"$f":"IF(COUNTIF($E16,\"*神奈川*\"),1,0)","v":0},{"$f":"IF(COUNTIF($E16,\"*山梨*\"),1,0)","v":0},null,{"$f":"IF(COUNTIF($E16,\"*新潟*\"),1,0)","v":1},{"$f":"IF(COUNTIF($E16,\"*静岡*\"),1,0)","v":0},null,null,null,null,null,{"$f":"IF(COUNTIF($K16,\"*土木*\"),1,0)","v":1},{"$f":"IF(COUNTIF($K16,\"*建築*\"),1,0)","v":0},{"$f":"IF(COUNTIF($K16,\"*電気工事*\"),1,0)","v":0},{"$f":"IF(COUNTIF($K16,\"*管*\"),1,0)","v":0},{"$f":"IF(COUNTIF($K16,\"*鋼構造物*\"),1,0)","v":0},{"$f":"IF(COUNTIF($K16,\"*ほ装*\"),1,0)","v":0},{"$f":"IF(COUNTIF($K16,\"*塗装*\"),1,0)","v":0},{"$f":"IF(COUNTIF($K16,\"*機械器具*\"),1,0)","v":0},{"$f":"IF(COUNTIF($K16,\"*電気通信*\"),1,0)","v":0},{"$f":"IF(COUNTIF($K16,\"*造園*\"),1,0)","v":0},{"$f":"IF(COUNTIF($K16,\"*水道*\"),1,0)","v":0},{"$f":"IF(COUNTIF($K16,\"*消防*\"),1,0)","v":0},null,null,null,null,null,null,null,null,null,null,null,null,null,null,0]
[2,"東京航空局","一般競争","東京国際空港構内道路維持修繕工事","東京都","東京都大田区\n東京国際空港","2021-04-01","2024-03-31",36,"","ほ装工事","東京国際空港構内道路の土木施設の維持修繕及び航空保安施設等の維持","第4四半期","第3四半期",null,null,null,"土建課",null,null,null,null,null,null,null,null,{"$f":"COUNTIF($F17,\"*中標津*\")+COUNTIF($F17,\"*釧路*\")+COUNTIF($F17,\"*帯広*\")","v":0},{"$f":"COUNTIF($F17,\"*丘珠*\")+COUNTIF($F17,\"*新千歳*\")","v":0},{"$f":"COUNTIF($F17,\"*稚内*\")+COUNTIF($F17,\"*礼文*\")+COUNTIF($F17,\"*利尻*\")+COUNTIF($F17,\"*紋別*\")+COUNTIF($F17,\"*女満別*\")+COUNTIF($F17,\"*旭川*\")","v":0},{"$f":"COUNTIF($F17,\"*函館*\")+COUNTIF($F17,\"*奥尻*\")","v":0},{"$f":"IF(COUNTIF($E17,\"*青森*\"),1,0)","v":0},{"$f":"IF(COUNTIF($E17,\"*岩手*\"),1,0)","v":0},{"$f":"IF(COUNTIF($E17,\"*宮城*\"),1,0)","v":0},{"$f":"IF(COUNTIF($E17,\"*秋田*\"),1,0)","v":0},{"$f":"IF(COUNTIF($E17,\"*山形*\"),1,0)","v":0},{"$f":"IF(COUNTIF($E17,\"*福島*\"),1,0)","v":0},{"$f":"IF(COUNTIF($E17,\"*茨城*\"),1,0)","v":0},{"$f":"IF(COUNTIF($E17,\"*栃木*\"),1,0)","v":0},null,{"$f":"IF(COUNTIF($E17,\"*埼玉*\"),1,0)","v":0},{"$f":"IF(COUNTIF($E17,\"*千葉*\"),1,0)","v":0},{"$f":"IF(COUNTIF($E17,\"*東京*\"),1,0)","v":1},{"$f":"IF(COUNTIF($E17,\"*神奈川*\"),1,0)","v":0},{"$f":"IF(COUNTIF($E17,\"*山梨*\"),1,0)","v":0},null,{"$f":"IF(COUNTIF($E17,\"*新潟*\"),1,0)","v":0},{"$f":"IF(COUNTIF($E17,\"*静岡*\"),1,0)","v":0},null,null,null,null,null,{"$f":"IF(COUNTIF($K17,\"*土木*\"),1,0)","v":0},{"$f":"IF(COUNTIF($K17,\"*建築*\"),1,0)","v":0},{"$f":"IF(COUNTIF($K17,\"*電気工事*\"),1,0)","v":0},{"$f":"IF(COUNTIF($K17,\"*管*\"),1,0)","v":0},{"$f":"IF(COUNTIF($K17,\"*鋼構造物*\"),1,0)","v":0},{"$f":"IF(COUNTIF($K17,\"*ほ装*\"),1,0)","v":1},{"$f":"IF(COUNTIF($K17,\"*塗装*\"),1,0)","v":0},{"$f":"IF(COUNTIF($K17,\"*機械器具*\"),1,0)","v":0},{"$f":"IF(COUNTIF($K17,\"*電気通信*\"),1,0)","v":0},{"$f":"IF(COUNTIF($K17,\"*造園*\"),1,0)","v":0},{"$f":"IF(COUNTIF($K17,\"*水道*\"),1,0)","v":0},{"$f":"IF(COUNTIF($K17,\"*消防*\"),1,0)","v":0},null,null,null,null,null,null,null,null,null,null,null,null,null,null,0]
[3,"東京航空局","一般競争","丘珠空港土木施設維持修繕工事","北海道","北海道札幌市\n丘珠空港","2021-04-01","2024-03-31",36,"","ほ装工事","丘珠空港の土木施設の維持修繕及び航空保安施設等の維持","第4四半期","第3四半期",null,null,null,"土建課",null,null,null,null,null,null,null,null,0,1,0,0,0,0,0,0,0,0,0,0,null,0,0,{"$f":"IF(COUNTIF($E18,\"*東京*\"),1,0)","v":0},0,0,null,0,0,null,null,null,null,null,0,0,0,0,0,1,0,0,0,0,0,0,null,null,null,null,null,null,null,null,null,null,null,null,null,null,0]
[4,"東京航空局","一般競争","東京国際空港構内道路舗装改修工事","東京都","東京都大田区\n東京国際空港","2021-04-01","2022-02-01",11,"","ほ装工事","東京国際空港構内道路の舗装改修","第1四半期\n（令和3年度）","第4四半期",null,null,null,"土建課",null,null,null,null,null,null,null,null,0,0,0,0,0,0,0,0,0,0,0,0,null,0,0,{"$f":"IF(COUNTIF($E19,\"*東京*\"),1,0)","v":1},0,0,null,0,0,null,null,null,null,null,0,0,0,0,0,1,0,0,0,0,0,0,null,null,null,null,null,null,null,null,null,null,null,null,null,null,0]
[5,"東京航空局","一般競争","東京国際空港表面排水溝改良その他工事","東京都","東京都大田区\n東京国際空港","2021-06-01","2022-03-01",10,"","土木工事","東京国際空港の表面排水溝改良、保安・場周道路舗装改修","第1四半期\n（令和3年度）","第1四半期\n（令和3年度）",null,null,null,"土建課",null,null,null,null,null,null,null,null,0,0,0,0,0,0,0,0,0,0,0,0,null,0,0,1,0,0,null,0,0,null,null,null,null,null,1,0,0,0,0,0,0,0,0,0,0,0,null,null,null,null,null,null,null,null,null,null,null,null,null,null,0]
[6,"東京航空局","一般競争","東京国際空港Ａ誘導路等舗装改修工事","東京都","東京都大田区\n東京国際空港","2021-08-01","2022-03-01",8,"","ほ装工事","東京国際空港Ａ誘導路等の舗装改修","第2四半期\n（令和3年度）","第4四半期\n（令和3年度）",null,null,null,"土建課",null,null,null,null,null,null,null,null,0,0,0,0,0,0,0,0,0,0,0,0,null,0,0,1,0,0,null,0,0,null,null,null,null,null,0,0,0,0,0,1,0,0,0,0,0,0,null,null,null,null,null,null,null,null,null,null,null,null,null,null,0]
[7,"東京航空局","一般競争","東京国際空港共同溝改修工事","東京都","東京都大田区\n東京国際空港","2022-03-01","2023-02-01",12,"","土木工事","東京国際空港共同溝の改修","第4四半期\n（令和3年度）","第4四半期\n（令和3年度）",null,null,null,"土建課",null,null,null,null,null,null,null,null,0,0,0,0,0,0,0,0,0,0,0,0,null,0,0,1,0,0,null,0,0,null,null,null,null,null,1,0,0,0,0,0,0,0,0,0,0,0,null,null,null,null,null,null,null,null,null,null,null,null,null,null,0]
[8,"東京航空局","一般競争","横須賀ＶＯＲ／ＤＭＥカウンターポイズ解体その他工事","神奈川県","神奈川県三浦郡葉山町\n横須賀VOR/DME","2021-01-01","2021-03-01",3,"","建築工事","カウンターポイズ\n規模：S造、φ50m、高さ3.28m\n解体工事\nVOR/DME局舎\n規模：ＲＣ造　建築面積　134.40㎡\n屋上防水改修一式　建具改修","第4四半期","第3四半期",null,null,null,"建築室",null,null,null,null,null,null,null,null,0,0,0,0,0,0,0,0,0,0,0,0,null,0,0,0,1,0,null,0,0,null,null,null,null,null,0,1,0,0,0,0,0,0,0,0,0,0,null,null,null,null,null,null,null,null,null,null,null,null,null,null,0]
[9,"東京航空局","一般競争","稚内空港除雪車庫新築工事","北海道","北海道稚内市\n稚内空港","2021-03-01","2021-11-30",9,"","建築工事","除雪車庫新築\n規模：ＲＣ造　平屋建\n建築面積：920m2\n新築、外構、電気設備、機械設備　一式","第4四半期","第4四半期",null,null,null,"建築室",null,null,null,null,null,null,null,null,0,0,1,0,0,0,0,0,0,0,0,0,null,0,0,0,0,0,null,0,0,null,null,null,null,null,0,1,0,0,0,0,0,0,0,0,0,0,null,null,null,null,null,null,null,null,null,null,null,null,null,null,0]
[10,"東京航空局","一般競争","東京国際空港ＳＲＡ検査場（Ｔ２ゲート）新築工事","東京都","東京都大田区\n東京国際空港","2021-03-01","2021-10-01",8,null,"建築工事","ＳＲＡ検査場（Ｔ２ゲート）\n構造：ＲＣ造　平屋建\n建築面積：504m2\n新築、フェンス、外構、電気設備、機械設備　一式","第4四半期","第4四半期",null,null,null,"建築室",null,null,null,null,null,null,null,null,0,0,0,0,0,0,0,0,0,0,0,0,null,0,0,1,0,0,null,0,0,null,null,null,null,null,0,1,0,0,0,0,0,0,0,0,0,0,null,null,null,null,null,null,null,null,null,null,null,null,null,null,0]
[11,"東京航空局","一般競争","稚内空港他３空港運航援助業務機器移設その他工事","北海道","北海道千歳市\n　新千歳空港\n北海道稚内市\n　稚内空港\n北海道釧路市\n　釧路空港\n北海道函館市\n　函館空港","2021-01-01","2021-05-20",5,"","電気通信工事","統合スポット管理システム設置工事　１式\n運航情報業務用機器移設工事　1式\n運航情報業務用機器撤去工事　1式\n付帯設備設置工事　1式","第4四半期","第3四半期",null,null,null,"運用課",null,null,null,null,null,null,null,null,1,1,1,1,0,0,0,0,0,0,0,0,null,0,0,0,0,0,null,0,0,null,null,null,null,null,0,0,0,0,0,0,0,0,1,0,0,0,null,null,null,null,null,null,null,null,null,null,null,null,null,null,0]
[12,"東京航空局","一般競争","東京国際空港構内道路管理監視システム更新工事","東京都","東京都大田区\n東京国際空港","2021-02-01","2021-12-01",11,"","電気通信工事","ITVカメラ設置工事　1式\n監視設備設置工事　1式","第4四半期","第4四半期",null,null,null,"空企課",null,null,null,null,null,null,null,null,0,0,0,0,0,0,0,0,0,0,0,0,null,0,0,1,0,0,null,0,0,null,null,null,null,null,0,0,0,0,0,0,0,0,1,0,0,0]
[13,"東京航空局","一般競争","坂戸国際対空通信設備更新工事","埼玉県","埼玉県鶴ヶ島市\n坂戸HF","2021-03-01","2021-09-30",7,"","電気通信工事","国際対空更新工事1式\n付帯設備設置工事1式","第4四半期","第4四半期",null,null,null,"管技課",null,null,null,null,null,null,null,null,0,0,0,0,0,0,0,0,0,0,0,0,null,1,0,0,0,0,null,0,0,null,null,null,null,null,0,0,0,0,0,0,0,0,1,0,0,0,null,null,null,null,null,null,null,null,null,null,null,null,null,null,0]
[14,"東京航空局","一般競争","上品山ＳＳＲ更新工事","宮城県","宮城県石巻市\n上品山SSR","2021-03-01","2021-09-30",7,"","電気通信工事","SSR更新工事1式\n付帯設備設置工事1式","第4四半期","第4四半期",null,null,null,"管技課",null,null,null,null,null,null,null,null,0,0,0,0,0,0,1,0,0,0,0,0,null,0,0,0,0,0,null,0,0,null,null,null,null,null,0,0,0,0,0,0,0,0,1,0,0,0,null,null,null,null,null,null,null,null,null,null,null,null,null,null,0]
[15,"東京航空局","一般競争","成田国際対空通信設備更新工事","千葉県","千葉県成田市\n成田国際空港","2021-02-01","2022-01-01",12,"","電気通信工事","国際対空通信設備更新工事1式\n付帯設備設置工事1式","第4四半期","第4四半期",null,null,null,"管技課",null,null,null,null,null,null,null,null,0,0,0,0,0,0,0,0,0,0,0,0,null,0,1,0,0,0,null,0,0,null,null,null,null,null,0,0,0,0,0,0,0,0,1,0,0,0,null,null,null,null,null,null,null,null,null,null,null,null,null,null,0]
[16,"東京航空局","一般競争","秋田空港仮設ＬＯＣ設置工事","秋田県","秋田県秋田市\n秋田空港","2021-04-01","2021-09-01",6,"","電気通信工事","仮設LOC設置工事1式","第4四半期","第4四半期",null,null,null,"管技課",null,null,null,null,null,null,null,null,0,0,0,0,0,0,0,1,0,0,0,0,null,0,0,0,0,0,null,0,0,null,null,null,null,null,0,0,0,0,0,0,0,0,1,0,0,0,null,null,null,null,null,null,null,null,null,null,null,null,null,null,0]
[17,"東京航空局","一般競争","成田ＲＣＡＧ更新工事","千葉県","千葉県成田市\n成田国際空港","2021-03-01","2021-07-01",5,"","電気通信工事","RCAG更新工事1式\n付帯設備設置工事1式","第4四半期","第4四半期",null,null,null,"管技課",null,null,null,null,null,null,null,null,0,0,0,0,0,0,0,0,0,0,0,0,null,0,1,0,0,0,null,0,0,null,null,null,null,null,0,0,0,0,0,0,0,0,1,0,0,0,null,null,null,null,null,null,null,null,null,null,null,null,null,null,0]
[18,"東京航空局","一般競争","守谷ＤＭＥ更新工事","茨城県","茨城県守谷市\n守谷VOR/DME","2021-03-01","2021-10-01",8,"","電気通信工事","DME更新工事1式\n付帯設備設置工事1式","第4四半期","第4四半期",null,null,null,"管技課",null,null,null,null,null,null,null,null,0,0,0,0,0,0,0,0,0,0,1,0,null,0,0,0,0,0,null,0,0,null,null,null,null,null,0,0,0,0,0,0,0,0,1,0,0,0,null,null,null,null,null,null,null,null,null,null,null,null,null,null,0]
[19,"東京航空局","一般競争","千歳ＶＯＲ／ＤＭＥ更新工事","北海道","北海道苫小牧市\n千歳VOR/DME","2021-02-01","2021-09-30",8,null,"電気通信工事","VOR/DME更新工事 1式、付帯設備更新工事　1式\n仮設VOR/DME撤去工事1式","第4四半期","第4四半期",null,null,null,"管技課",null,null,null,null,null,null,null,null,0,0,0,0,0,0,0,0,0,0,0,0,null,0,0,0,0,0,null,0,0,null,null,null,null,null,0,0,0,0,0,0,0,0,1,0,0,0,null,null,null,null,null,null,null,null,null,null,null,null,null,null,0]
[20,"東京航空局","一般競争","東京国際空港ＳＩＭ移設その他工事","東京都","東京都大田区\n東京国際空港","2021-03-01","2021-06-01",4,"","電気通信工事","SIM移設工事1式\n付帯設備設置工事1式","第4四半期","第4四半期",null,null,null,"管技課",null,null,null,null,null,null,null,null,0,0,0,0,0,0,0,0,0,0,0,0,null,0,0,1,0,0,null,0,0,null,null,null,null,null,0,0,0,0,0,0,0,0,1,0,0,0,null,null,null,null,null,null,null,null,null,null,null,null,null,null,0]
[21,"東京航空局","一般競争","函館空港ＴＡＰＳ－ＳＩＭ更新その他工事","北海道","北海道函館市\n函館空港","2021-04-01","2021-09-01",6,"","電気通信工事","TAPS-SIM設置工事1式","第4四半期","第4四半期",null,null,null,"管技課",null,null,null,null,null,null,null,null,0,0,0,1,0,0,0,0,0,0,0,0,null,0,0,0,0,0,null,0,0,null,null,null,null,null,0,0,0,0,0,0,0,0,1,0,0,0,null,null,null,null,null,null,null,null,null,null,null,null,null,null,0]
[22,"東京航空局","一般競争","利尻空港他１空港ＲＡＧ空港用ＩＴＶ装置更新工事","北海道","北海道千歳市\n　新千歳空港\n北海道利尻郡利尻富士町\n　利尻空港\n北海道奥尻郡奥尻町\n　奥尻空港","2021-03-01","2021-07-01",5,"","電気通信工事","RAG-ITV機器設置工事　1式\n付帯設備設置工事　1式","第4四半期","第4四半期",null,null,null,"管技課",null,null,null,null,null,null,null,null,0,1,1,1,0,0,0,0,0,0,0,0,null,0,0,0,0,0,null,0,0,null,null,null,null,null,0,0,0,0,0,0,0,0,1,0,0,0,null,null,null,null,null,null,null,null,null,null,null,null,null,null,0]
[23,"東京航空局","一般競争","新潟空港CCS移設その他工事","新潟県","新潟県新潟市\n新潟空港","2021-03-01","2021-06-01",5,"","電気通信工事","CCS移設工事１式\n付帯設備移設工事1式","第4四半期","第4四半期",null,null,null,"管技課",null,null,null,null,null,null,null,null,0,0,0,0,0,0,0,0,0,0,0,0,null,0,0,0,0,0,null,1,0,null,null,null,null,null,0,0,0,0,0,0,0,0,1,0,0,0,null,null,null,null,null,null,null,null,null,null,null,null,null,null,0]
[24,"東京航空局　","一般競争","東京国際空港３４Ｒ－ＩＭシェルタ移設その他工事","東京都","東京都大田区\n東京国際空港","2021-03-01","2021-07-01",5,null,"電気通信工事","IM移設工事1式\n付帯設備設置・移設工事1式","第4四半期","第4四半期",null,null,null,"管技課",null,null,null,null,null,null,null,null,0,0,0,0,0,0,0,0,0,0,0,0,null,0,0,1,0,0,null,0,0,null,null,null,null,null,0,0,0,0,0,0,0,0,1,0,0,0,null,null,null,null,null,null,null,null,null,null,null,null,null,null,0]
[25,"東京航空局","一般競争","蔵王山田ＶＯＲ発電装置撤去工事","山形県\n宮城県","山形県山形市\n宮城県岩沼市","2021-03-01","2021-06-01",4,"","電気工事","発電装置撤去工事　１式\n付帯設備撤去工事　１式","第4四半期","第4四半期",null,null,null,"管技課\n機械システム室",null,null,null,null,null,null,null,null,0,0,0,0,0,0,1,0,1,0,0,0,null,0,0,0,0,0,null,0,0,null,null,null,null,null,0,0,1,0,0,0,0,0,0,0,0,0,null,null,null,null,null,null,null,null,null,null,null,null,null,null,0]
[26,"東京航空局","一般競争","三沢空港航空灯火施設維持工事","青森県","青森県三沢市\n三沢空港","2021-02-01","2024-03-01",38,null,"電気工事","航空灯火施設　一式\n電気施設　一式","第4四半期","第3四半期",null,null,null,"灯電課",null,null,null,null,null,null,null,null,0,0,0,0,1,0,0,0,0,0,0,0,null,0,0,0,0,0,null,0,0,null,null,null,null,null,0,0,1,0,0,0,0,0,0,0,0,0,null,null,null,null,null,null,null,null,null,null,null,null,null,null,0]
[27,"東京航空局","一般競争","新潟空港航空灯火施設維持工事","新潟県","新潟県新潟市\n新潟空港","2021-02-01","2024-03-01",38,null,"電気工事","航空灯火施設　一式\n電気施設　一式","第4四半期","第3四半期",null,null,null,"灯電課",null,null,null,null,null,null,null,null,0,0,0,0,0,0,0,0,0,0,0,0,null,0,0,0,0,0,null,1,0,null,null,null,null,null,0,0,1,0,0,0,0,0,0,0,0,0,null,null,null,null,null,null,null,null,null,null,null,null,null,null,0]
[28,"東京航空局","一般競争","東京国際空港Ｃ滑走路進入角指示灯設置その他工事","東京都","東京都大田区","2021-02-03","2021-12-01",10,null,"電気工事","進入角指示灯　１式\nケーブル　１式","第4四半期","第4四半期",null,null,null,"灯電課",null,null,null,null,null,null,null,null,0,0,0,0,0,0,0,0,0,0,0,0,null,0,0,1,0,0,null,0,0,null,null,null,null,null,0,0,1,0,0,0,0,0,0,0,0,0,null,null,null,null,null,null,null,null,null,null,null,null,null,null,0]
[29,"東京航空局","一般競争","東京国際空港Ａ滑走路中心線灯改良その他工事　その２","東京都","東京都大田区","2021-02-01","2021-03-01",2,null,"電気工事","滑走路灯火　１式\n誘導路灯火　1式\nケーブル　１式","第4四半期","第4四半期",null,null,null,"灯電課",null,null,null,null,null,null,null,null,{"$f":"COUNTIF($F44,\"*中標津*\")+COUNTIF($F44,\"*釧路*\")+COUNTIF($F44,\"*帯広*\")","v":0},{"$f":"COUNTIF($F44,\"*丘珠*\")+COUNTIF($F44,\"*新千歳*\")","v":0},{"$f":"COUNTIF($F44,\"*稚内*\")+COUNTIF($F44,\"*礼文*\")+COUNTIF($F44,\"*利尻*\")+COUNTIF($F44,\"*紋別*\")+COUNTIF($F44,\"*女満別*\")+COUNTIF($F44,\"*旭川*\")","v":0},{"$f":"COUNTIF($F44,\"*函館*\")+COUNTIF($F44,\"*奥尻*\")","v":0},{"$f":"IF(COUNTIF($E44,\"*青森*\"),1,0)","v":0},{"$f":"IF(COUNTIF($E44,\"*岩手*\"),1,0)","v":0},{"$f":"IF(COUNTIF($E44,\"*宮城*\"),1,0)","v":0},{"$f":"IF(COUNTIF($E44,\"*秋田*\"),1,0)","v":0},{"$f":"IF(COUNTIF($E44,\"*山形*\"),1,0)","v":0},{"$f":"IF(COUNTIF($E44,\"*福島*\"),1,0)","v":0},{"$f":"IF(COUNTIF($E44,\"*茨城*\"),1,0)","v":0},{"$f":"IF(COUNTIF($E44,\"*栃木*\"),1,0)","v":0},null,{"$f":"IF(COUNTIF($E44,\"*埼玉*\"),1,0)","v":0},{"$f":"IF(COUNTIF($E44,\"*千葉*\"),1,0)","v":0},{"$f":"IF(COUNTIF($E44,\"*東京*\"),1,0)","v":1},{"$f":"IF(COUNTIF($E44,\"*神奈川*\"),1,0)","v":0},{"$f":"IF(COUNTIF($E44,\"*山梨*\"),1,0)","v":0},null,{"$f":"IF(COUNTIF($E44,\"*新潟*\"),1,0)","v":0},{"$f":"IF(COUNTIF($E44,\"*静岡*\"),1,0)","v":0},null,null,null,null,null,{"$f":"IF(COUNTIF($K44,\"*土木*\"),1,0)","v":0},{"$f":"IF(COUNTIF($K44,\"*建築*\"),1,0)","v":0},{"$f":"IF(COUNTIF($K44,\"*電気工事*\"),1,0)","v":1},{"$f":"IF(COUNTIF($K44,\"*管*\"),1,0)","v":0},{"$f":"IF(COUNTIF($K44,\"*鋼構造物*\"),1,0)","v":0},{"$f":"IF(COUNTIF($K44,\"*ほ装*\"),1,0)","v":0},{"$f":"IF(COUNTIF($K44,\"*塗装*\"),1,0)","v":0},{"$f":"IF(COUNTIF($K44,\"*機械器具*\"),1,0)","v":0},{"$f":"IF(COUNTIF($K44,\"*電気通信*\"),1,0)","v":0},{"$f":"IF(COUNTIF($K44,\"*造園*\"),1,0)","v":0},{"$f":"IF(COUNTIF($K44,\"*水道*\"),1,0)","v":0},{"$f":"IF(COUNTIF($K44,\"*消防*\"),1,0)","v":0},null,null,null,null,null,null,null,null,null,null,null,null,null,null,0]
[30,"東京航空局","一般競争","百里空港航空灯火施設維持工事","茨城県","茨城県小美玉市\n百里空港","2021-02-01","2024-03-01",38,null,"電気工事","航空灯火施設　一式\n電気施設　一式","第4四半期","第3四半期",null,null,null,"灯電課",null,null,null,null,null,null,null,null,0,0,0,0,0,0,0,0,0,0,1,0,null,0,0,0,0,0,null,0,0,null,null,null,null,null,0,0,1,0,0,0,0,0,0,0,0,0,null,null,null,null,null,null,null,null,null,null,null,null,null,null,0]
[31,"東京航空局","一般競争","函館空港進入角指示灯設置その他工事","北海道","北海道函館市\n函館空港","2021-01-01","2021-03-01",3,null,"電気工事","進入角指示灯　１式\n進入角指示灯監視装置　１式\nケーブル　１式","第4四半期","第3四半期",null,null,null,"灯電課",null,null,null,null,null,null,null,null,0,0,0,1,0,0,0,0,0,0,0,0,null,0,0,0,0,0,null,0,0,null,null,null,null,null,0,0,1,0,0,0,0,0,0,0,0,0,null,null,null,null,null,null,null,null,null,null,null,null,null,null,0]
[32,"東京航空局","一般競争","新潟空港道路照明灯設置その他工事","新潟県","新潟県新潟市\n新潟空港","2021-01-01","2021-03-01",3,null,"電気工事","道路照明灯　１式\nケーブル　１式","第4四半期","第3四半期",null,null,null,"灯電課",null,null,null,null,null,null,null,null,0,0,0,0,0,0,0,0,0,0,0,0,null,0,0,0,0,0,null,1,0,null,null,null,null,null,0,0,1,0,0,0,0,0,0,0,0,0,null,null,null,null,null,null,null,null,null,null,null,null,null,null,0]
[33,"東京航空局","一般競争","北海道地区航空保安用電気施設監視用ITV設置工事","北海道","北海道千歳市\n　新千歳空港\n北海道稚内市\n　稚内空港\n北海道釧路市\n　釧路空港\n北海道函館市\n　函館空港","2021-02-01","2021-03-01",2,"","電気工事","航空保安用電気施設監視用ITV　１式\nケーブル　１式","第4四半期","第4四半期",null,null,null,"灯電課",null,null,null,null,null,null,null,null,1,1,1,1,0,0,0,0,0,0,0,0,null,0,0,0,0,0,null,0,0,null,null,null,null,null,0,0,1,0,0,0,0,0,0,0,0,0,null,null,null,null,null,null,null,null,null,null,null,null,null,null,0]
[34,"東京航空局","一般競争","東京国際空港防災通信指令装置更新工事","東京都","東京都大田区\n東京国際空港","2021-01-01","2021-03-01",3,"","電気通信工事","・防災通信指令装置　一式\n・配管及び電源、通信、光ケーブル等","第4四半期","第3四半期",null,null,null,"安対課",null,null,null,null,null,null,null,null,0,0,0,0,0,0,0,0,0,0,0,0,null,0,0,1,0,0,null,0,0,null,null,null,null,null,0,0,0,0,0,0,0,0,1,0,0,0,null,null,null,null,null,null,null,null,null,null,null,null,null,null,0]
[35,"東京航空局","一般競争","東京国際空港海上警備設備更新工事","東京都","東京都大田区\n東京国際空港","2021-02-01","2022-01-31",12,"","電気通信工事","・海上警備設備一式\n・配管及び電源、通信、光ケーブル等","第4四半期","第4四半期",null,null,null,"安対課",null,null,null,null,null,null,null,null,0,0,0,0,0,0,0,0,0,0,0,0,null,0,0,1,0,0,null,0,0,null,null,null,null,null,0,0,0,0,0,0,0,0,1,0,0,0,null,null,null,null,null,null,null,null,null,null,null,null,null,null,0]
[36,"仙台空港事務所","一般競争","仙台ＲＣＡＧ更新他１件工事","宮城県","宮城県名取市\n仙台空港","2021-03-01","2021-06-01",4,"","電気通信工事","RCAG更新工事1式\n付帯設備設置工事1式\nA/G更新工事1式\nTAPS-SIM設置工事1式\n機器撤去工事1式","第4四半期","第4四半期",null,null,null,"仙台（事）",null,null,null,null,null,null,null,null,0,0,0,0,0,0,1,0,0,0,0,0,null,0,0,0,0,0,null,0,0,null,null,null,null,null,0,0,0,0,0,0,0,0,1,0,0,0,null,null,null,null,null,null,null,null,null,null,null,null,null,null,0]
[37,"東京空港事務所","一般競争","友部ＩＴＶ更新その他工事","茨城県","茨城県笠間市","2021-01-01","2021-03-01",3,"","電気通信工事","ITVカメラ設置工事　1式\n付帯設備設置工事　1式","第4四半期","第4四半期",null,null,null,"東京（事）",null,null,null,null,null,null,null,null,0,0,0,0,0,0,0,0,0,0,1,0,null,0,0,0,0,0,null,0,0,null,null,null,null,null,0,0,0,0,0,0,0,0,1,0,0,0,null,null,null,null,null,null,null,null,null,null,null,null,null,null,0]
[null,null,null,null,null,null,null,null,null,null,null,null,null,null,null,1,null,null,null,null,null,null,null,null,null,null,0,0,0,0,0,0,0,0,0,0,0,0,null,0,0,0,0,0,null,0,0,null,null,null,null,null,0,0,0,0,0,0,0,0,0,0,0,0,null,null,null,null,null,null,null,null,null,null,null,null,null,null,0]
[null,null,null,null,null,null,null,null,null,null,null,null,null,null,null,1,null,null,null,null,null,null,null,null,null,null,0,0,0,0,0,0,0,0,0,0,0,0,null,0,0,0,0,0,null,0,0,null,null,null,null,null,0,0,0,0,0,0,0,0,0,0,0,0,null,null,null,null,null,null,null,null,null,null,null,null,null,null,0]
[null,null,null,null,null,null,null,null,null,null,null,null,null,null,null,1,null,null,null,null,null,null,null,null,null,null,0,0,0,0,0,0,0,0,0,0,0,0,null,0,0,0,0,0,null,0,0,null,null,null,null,null,0,0,0,0,0,0,0,0,0,0,0,0,null,null,null,null,null,null,null,null,null,null,null,null,null,null,0]
[null,null,null,null,null,null,null,null,null,null,null,null,null,null,null,1,null,null,null,null,null,null,null,null,null,null,0,0,0,0,0,0,0,0,0,0,0,0,null,0,0,0,0,0,null,0,0,null,null,null,null,null,0,0,0,0,0,0,0,0,0,0,0,0,null,null,null,null,null,null,null,null,null,null,null,null,null,null,0]
[null,null,null,null,null,null,null,null,null,null,null,null,null,null,null,1,null,null,null,null,null,null,null,null,null,null,0,0,0,0,0,0,0,0,0,0,0,0,null,0,0,0,0,0,null,0,0,null,null,null,null,null,0,0,0,0,0,0,0,0,0,0,0,0,null,null,null,null,null,null,null,null,null,null,null,null,null,null,0]
[null,null,null,null,null,null,null,null,null,null,null,null,null,null,null,1,null,null,null,null,null,null,null,null,null,null,0,0,0,0,0,0,0,0,0,0,0,0,null,0,0,0,0,0,null,0,0,null,null,null,null,null,0,0,0,0,0,0,0,0,0,0,0,0,null,null,null,null,null,null,null,null,null,null,null,null,null,null,0]
[null,null,null,null,null,null,null,null,null,null,null,null,null,null,null,1,null,null,null,null,null,null,null,null,null,null,0,0,0,0,0,0,0,0,0,0,0,0,null,0,0,0,0,0,null,0,0,null,null,null,null,null,0,0,0,0,0,0,0,0,0,0,0,0,null,null,null,null,null,null,null,null,null,null,null,null,null,null,0]
[null,null,null,null,null,null,null,null,null,null,null,null,null,null,null,1,null,null,null,null,null,null,null,null,null,null,0,0,0,0,0,0,0,0,0,0,0,0,null,0,0,0,0,0,null,0,0,null,null,null,null,null,0,0,0,0,0,0,0,0,0,0,0,0,null,null,null,null,null,null,null,null,null,null,null,null,null,null,0]
[null,null,null,null,null,null,null,null,null,null,null,null,null,null,null,1,null,null,null,null,null,null,null,null,null,null,0,0,0,0,0,0,0,0,0,0,0,0,null,0,0,0,0,0,null,0,0,null,null,null,null,null,0,0,0,0,0,0,0,0,0,0,0,0,null,null,null,null,null,null,null,null,null,null,null,null,null,null,0]
[null,null,null,null,null,null,null,null,null,null,null,null,null,null,null,1,null,null,null,null,null,null,null,null,null,null,0,0,0,0,0,0,0,0,0,0,0,0,null,0,0,0,0,0,null,0,0,null,null,null,null,null,0,0,0,0,0,0,0,0,0,0,0,0,null,null,null,null,null,null,null,null,null,null,null,null,null,null,0]
[null,null,null,null,null,null,null,null,null,null,null,null,null,null,null,1,null,null,null,null,null,null,null,null,null,null,0,0,0,0,0,0,0,0,0,0,0,0,null,0,0,0,0,0,null,0,0,null,null,null,null,null,0,0,0,0,0,0,0,0,0,0,0,0,null,null,null,null,null,null,null,null,null,null,null,null,null,null,0]
[null,null,null,null,null,null,null,null,null,null,null,null,null,null,null,1,null,null,null,null,null,null,null,null,null,null,0,0,0,0,0,0,0,0,0,0,0,0,null,0,0,0,0,0,null,0,0,null,null,null,null,null,0,0,0,0,0,0,0,0,0,0,0,0,null,null,null,null,null,null,null,null,null,null,null,null,null,null,0]
[null,null,null,null,null,null,null,null,null,null,null,null,null,null,null,1,null,null,null,null,null,null,null,null,null,null,0,0,0,0,0,0,0,0,0,0,{"$f":"IF(COUNTIF($E65,\"*茨城*\"),1,0)","v":0},0,null,0,0,0,0,0,null,0,0,null,null,null,null,null,0,0,0,0,0,0,0,0,0,0,0,0,null,null,null,null,null,null,null,null,null,null,null,null,null,null,0]
[null,null,null,null,null,null,null,null,null,null,null,null,null,null,null,1,null,null,null,null,null,null,null,null,null,null,0,0,0,0,0,0,0,0,0,0,0,0,null,0,0,0,0,0,null,0,0,null,null,null,null,null,0,0,0,0,0,0,0,0,0,0,0,0,null,null,null,null,null,null,null,null,null,null,null,null,null,null,0]
[null,null,null,null,null,null,null,null,null,null,null,null,null,null,null,1,null,null,null,null,null,null,null,null,null,null,0,0,0,0,0,0,0,0,0,0,0,0,null,0,0,0,0,0,null,0,0,null,null,null,null,null,0,0,0,0,0,0,0,0,0,0,0,0,null,null,null,null,null,null,null,null,null,null,null,null,null,null,0]
[null,null,null,null,null,null,null,null,null,null,null,null,null,null,null,1,null,null,null,null,null,null,null,null,null,null,0,0,0,0,0,0,0,0,0,0,0,0,null,0,0,0,0,0,null,0,0,null,null,null,null,null,0,0,0,0,0,0,0,0,0,0,0,0,null,null,null,null,null,null,null,null,null,null,null,null,null,null,0]
[null,null,null,null,null,null,null,null,null,null,null,null,null,null,null,1,null,null,null,null,null,null,null,null,null,null,0,0,0,0,0,0,0,0,0,0,0,0,null,0,0,0,0,0,null,0,0,null,null,null,null,null,0,0,0,0,0,0,0,0,0,0,0,0,null,null,null,null,null,null,null,null,null,null,null,null,null,null,0]
[null,null,null,null,null,null,null,null,null,null,null,null,null,null,null,1,null,null,null,null,null,null,null,null,null,null,{"$f":"COUNTIF($F70,\"*中標津*\")+COUNTIF($F70,\"*釧路*\")+COUNTIF($F70,\"*帯広*\")","v":0},{"$f":"COUNTIF($F70,\"*丘珠*\")+COUNTIF($F70,\"*新千歳*\")","v":0},{"$f":"COUNTIF($F70,\"*稚内*\")+COUNTIF($F70,\"*礼文*\")+COUNTIF($F70,\"*利尻*\")+COUNTIF($F70,\"*紋別*\")+COUNTIF($F70,\"*女満別*\")+COUNTIF($F70,\"*旭川*\")","v":0},{"$f":"COUNTIF($F70,\"*函館*\")+COUNTIF($F70,\"*奥尻*\")","v":0},{"$f":"IF(COUNTIF($E70,\"*青森*\"),1,0)","v":0},{"$f":"IF(COUNTIF($E70,\"*岩手*\"),1,0)","v":0},{"$f":"IF(COUNTIF($E70,\"*宮城*\"),1,0)","v":0},{"$f":"IF(COUNTIF($E70,\"*秋田*\"),1,0)","v":0},{"$f":"IF(COUNTIF($E70,\"*山形*\"),1,0)","v":0},{"$f":"IF(COUNTIF($E70,\"*福島*\"),1,0)","v":0},0,{"$f":"IF(COUNTIF($E70,\"*栃木*\"),1,0)","v":0},null,{"$f":"IF(COUNTIF($E70,\"*埼玉*\"),1,0)","v":0},{"$f":"IF(COUNTIF($E70,\"*千葉*\"),1,0)","v":0},0,{"$f":"IF(COUNTIF($E70,\"*神奈川*\"),1,0)","v":0},{"$f":"IF(COUNTIF($E70,\"*山梨*\"),1,0)","v":0},null,{"$f":"IF(COUNTIF($E70,\"*新潟*\"),1,0)","v":0},{"$f":"IF(COUNTIF($E70,\"*静岡*\"),1,0)","v":0},null,null,null,null,null,{"$f":"IF(COUNTIF($K70,\"*土木*\"),1,0)","v":0},{"$f":"IF(COUNTIF($K70,\"*建築*\"),1,0)","v":0},{"$f":"IF(COUNTIF($K70,\"*電気工事*\"),1,0)","v":0},{"$f":"IF(COUNTIF($K70,\"*管*\"),1,0)","v":0},{"$f":"IF(COUNTIF($K70,\"*鋼構造物*\"),1,0)","v":0},{"$f":"IF(COUNTIF($K70,\"*ほ装*\"),1,0)","v":0},{"$f":"IF(COUNTIF($K70,\"*塗装*\"),1,0)","v":0},{"$f":"IF(COUNTIF($K70,\"*機械器具*\"),1,0)","v":0},{"$f":"IF(COUNTIF($K70,\"*電気通信*\"),1,0)","v":0},{"$f":"IF(COUNTIF($K70,\"*造園*\"),1,0)","v":0},{"$f":"IF(COUNTIF($K70,\"*水道*\"),1,0)","v":0},{"$f":"IF(COUNTIF($K70,\"*消防*\"),1,0)","v":0},null,null,null,null,null,null,null,null,null,null,null,null,null,null,0]
[null,null,null,null,null,null,null,null,null,null,null,null,null,null,null,1,null,null,null,null,null,null,null,null,null,null,0,0,0,0,0,0,0,0,0,0,0,0,null,0,0,0,0,0,null,0,0,null,null,null,null,null,0,0,0,0,0,0,0,0,0,0,0,0,null,null,null,null,null,null,null,null,null,null,null,null,null,null,0]
[null,null,null,null,null,null,null,null,null,null,null,null,null,null,null,1,null,null,null,null,null,null,null,null,null,null,0,0,0,0,0,0,0,0,0,0,0,0,null,0,0,{"$f":"IF(COUNTIF($E72,\"*東京*\"),1,0)","v":0},0,0,null,0,0,null,null,null,null,null,0,0,0,0,0,0,0,0,0,0,0,0,null,null,null,null,null,null,null,null,null,null,null,null,null,null,0]
[null,null,null,null,null,null,null,null,null,null,null,null,null,null,null,1,null,null,null,null,null,null,null,null,null,null,0,0,0,0,0,0,0,0,0,0,0,0,null,0,0,0,0,0,null,0,0,null,null,null,null,null,0,0,0,0,0,0,0,0,0,0,0,0,null,null,null,null,null,null,null,null,null,null,null,null,null,null,0]
[null,null,null,null,null,null,null,null,null,null,null,null,null,null,null,1,null,null,null,null,null,null,null,null,null,null,0,0,0,0,0,0,0,0,0,0,0,0,null,0,0,0,0,0,null,0,0,null,null,null,null,null,0,0,0,0,0,0,0,0,0,0,0,0,null,null,null,null,null,null,null,null,null,null,null,null,null,null,0]
[null,null,null,null,null,null,null,null,null,null,null,null,null,null,null,1,null,null,null,null,null,null,null,null,null,null,0,0,0,0,0,0,0,0,0,0,0,0,null,0,0,0,0,0,null,0,0,null,null,null,null,null,0,0,0,0,0,0,0,0,0,0,0,0,null,null,null,null,null,null,null,null,null,null,null,null,null,null,0]
[null,null,null,null,null,null,null,null,null,null,null,null,null,null,null,1,null,null,null,null,null,null,null,null,null,null,0,0,0,0,0,0,0,0,0,0,0,0,null,0,0,0,0,0,null,0,0,null,null,null,null,null,0,0,0,0,0,0,0,0,0,0,0,0,null,null,null,null,null,null,null,null,null,null,null,null,null,null,0]
[null,null,null,null,null,null,null,null,null,null,null,null,null,null,null,1,null,null,null,null,null,null,null,null,null,null,0,0,0,0,0,0,0,0,0,0,0,0,null,0,0,0,0,0,null,0,0,null,null,null,null,null,0,0,0,0,0,0,0,0,0,0,0,0,null,null,null,null,null,null,null,null,null,null,null,null,null,null,0]
[null,null,null,null,null,null,null,null,null,null,null,null,null,null,null,1,null,null,null,null,null,null,null,null,null,null,0,0,0,0,0,0,0,0,0,0,0,0,null,0,0,0,0,0,null,0,0,null,null,null,null,null,0,0,0,0,0,0,0,0,0,0,0,0,null,null,null,null,null,null,null,null,null,null,null,null,null,null,0]
[null,null,null,null,null,null,null,null,null,null,null,null,null,null,null,1,null,null,null,null,null,null,null,null,null,null,0,0,0,0,0,0,0,0,0,0,0,0,null,0,0,0,0,0,null,0,0,null,null,null,null,null,0,0,0,0,0,0,0,0,0,0,0,0,null,null,null,null,null,null,null,null,null,null,null,null,null,null,0]
[null,null,null,null,null,null,null,null,null,null,null,null,null,null,null,1,null,null,null,null,null,null,null,null,null,null,0,0,0,0,0,0,0,0,0,0,0,0,null,0,0,0,0,0,null,0,0,null,null,null,null,null,0,0,0,0,0,0,0,0,0,0,0,0,null,null,null,null,null,null,null,null,null,null,null,null,null,null,0]
[null,null,null,null,null,null,null,null,null,null,null,null,null,null,null,1,null,null,null,null,null,null,null,null,null,null,0,0,0,0,0,0,0,0,0,0,0,0,null,0,0,0,0,0,null,0,0,null,null,null,null,null,0,0,0,0,0,0,0,0,0,0,0,0,null,null,null,null,null,null,null,null,null,null,null,null,null,null,0]
[null,null,null,null,null,null,null,null,null,null,null,null,null,null,null,1,null,null,null,null,null,null,null,null,null,null,0,0,0,0,0,0,0,0,0,0,0,0,null,0,0,0,0,0,null,0,0,null,null,null,null,null,0,0,0,0,0,0,0,0,0,0,0,0,null,null,null,null,null,null,null,null,null,null,null,null,null,null,0]
[null,null,null,null,null,null,null,null,null,null,null,null,null,null,null,1,null,null,null,null,null,null,null,null,null,null,0,0,0,0,0,0,0,0,0,0,0,0,null,0,0,0,0,0,null,0,0,null,null,null,null,null,0,0,0,0,0,0,0,0,0,0,0,0,null,null,null,null,null,null,null,null,null,null,null,null,null,null,0]
[null,null,null,null,null,null,null,null,null,null,null,null,null,null,null,1,null,null,null,null,null,null,null,null,null,null,0,0,0,0,0,0,0,0,0,0,0,0,null,0,0,0,0,0,null,0,0,null,null,null,null,null,0,0,0,0,0,0,0,0,0,0,0,0,null,null,null,null,null,null,null,null,null,null,null,null,null,null,0]
[null,null,null,null,null,null,null,null,null,null,null,null,null,null,null,1,null,null,null,null,null,null,null,null,null,null,0,0,0,0,0,0,0,0,0,0,0,0,null,0,0,0,0,0,null,0,0,null,null,null,null,null,0,0,0,0,0,0,0,0,0,0,0,0,null,null,null,null,null,null,null,null,null,null,null,null,null,null,0]
[null,null,null,null,null,null,null,null,null,null,null,null,null,null,null,1,null,null,null,null,null,null,null,null,null,null,0,0,0,0,0,0,0,0,0,0,0,0,null,0,0,0,0,0,null,0,0,null,null,null,null,null,0,0,0,0,0,0,0,0,0,0,0,0,null,null,null,null,null,null,null,null,null,null,null,null,null,null,0]
[null,null,null,null,null,null,null,null,null,null,null,null,null,null,null,1,null,null,null,null,null,null,null,null,null,null,0,0,0,0,0,0,0,0,0,0,0,0,null,0,0,0,0,0,null,0,0,null,null,null,null,null,0,0,0,0,0,0,0,0,0,0,0,0,null,null,null,null,null,null,null,null,null,null,null,null,null,null,0]
[null,null,null,null,null,null,null,null,null,null,null,null,null,null,null,1,null,null,null,null,null,null,null,null,null,null,0,0,0,0,0,0,0,0,0,0,0,0,null,0,0,0,0,0,null,0,0,null,null,null,null,null,0,0,0,0,0,0,0,0,0,0,0,0,null,null,null,null,null,null,null,null,null,null,null,null,null,null,0]
[null,null,null,null,null,null,null,null,null,null,null,null,null,null,null,1,null,null,null,null,null,null,null,null,null,null,0,0,0,0,0,0,0,0,0,0,0,0,null,0,0,0,0,0,null,0,0,null,null,null,null,null,0,0,0,0,0,0,0,0,0,0,0,0,null,null,null,null,null,null,null,null,null,null,null,null,null,null,0]
[null,null,null,null,null,null,null,null,null,null,null,null,null,null,null,1,null,null,null,null,null,null,null,null,null,null,0,0,0,0,0,0,0,0,0,0,0,0,null,0,0,0,0,0,null,0,0,null,null,null,null,null,0,0,0,0,0,0,0,0,0,0,0,0,null,null,null,null,null,null,null,null,null,null,null,null,null,null,0]
[null,null,null,null,null,null,null,null,null,null,null,null,null,null,null,1,null,null,null,null,null,null,null,null,null,null,0,0,0,0,0,0,0,0,0,0,0,0,null,0,0,0,0,0,null,0,0,null,null,null,null,null,0,0,0,0,0,0,0,0,0,0,0,0,null,null,null,null,null,null,null,null,null,null,null,null,null,null,0]
[null,null,null,null,null,null,null,null,null,null,null,null,null,null,null,1,null,null,null,null,null,null,null,null,null,null,0,0,0,0,0,0,0,0,0,0,0,0,null,0,0,0,0,0,null,0,0,null,null,null,null,null,0,0,0,0,0,0,0,0,0,0,0,0,null,null,null,null,null,null,null,null,null,null,null,null,null,null,0]
[null,null,null,null,null,null,null,null,null,null,null,null,null,null,null,1,null,null,null,null,null,null,null,null,null,null,0,0,0,0,0,0,0,0,0,0,0,0,null,0,0,0,0,0,null,0,0,null,null,null,null,null,0,0,0,0,0,0,0,0,0,0,0,0,null,null,null,null,null,null,null,null,null,null,null,null,null,null,0]
[null,null,null,null,null,null,null,null,null,null,null,null,null,null,null,1,null,null,null,null,null,null,null,null,null,null,0,0,0,0,0,0,0,0,0,0,0,0,null,0,0,0,0,0,null,0,0,null,null,null,null,null,0,0,0,0,0,0,0,0,0,0,0,0,null,null,null,null,null,null,null,null,null,null,null,null,null,null,0]
[null,null,null,null,null,null,null,null,null,null,null,null,null,null,null,1,null,null,null,null,null,null,null,null,null,null,0,0,0,0,0,0,0,0,0,0,0,0,null,0,0,0,0,0,null,0,0,null,null,null,null,null,0,0,0,0,0,0,0,0,0,0,0,0,null,null,null,null,null,null,null,null,null,null,null,null,null,null,0]
[{"$f":"A95+1","v":1},null,null,null,null,null,null,null,{"$f":"IF(S96>0,S96,DATEDIF(G96,H96,\"M\")+1)","v":1},{"$f":"IF(S96>0,\"※\",\"\")","v":""},null,null,null,null,null,1,null,null,null,null,null,null,null,null,null,null,0,0,0,0,0,0,0,0,0,0,0,0,null,0,0,0,0,0,null,0,0,null,null,null,null,null,0,0,0,0,0,0,0,0,0,0,0,0,null,null,null,null,null,null,null,null,null,null,null,null,null,null,0]
[2,null,null,null,null,null,null,null,1,"",null,null,null,null,null,1,null,null,null,null,null,null,null,null,null,null,0,0,0,0,0,0,0,0,0,0,0,0,null,0,0,0,0,0,null,0,0,null,null,null,null,null,0,0,0,0,0,0,0,0,0,0,0,0,null,null,null,null,null,null,null,null,null,null,null,null,null,null,0]
[3,null,null,null,null,null,null,null,1,"",null,null,null,null,null,1,null,null,null,null,null,null,null,null,null,null,0,0,0,0,0,0,0,0,0,0,0,0,null,0,0,0,0,0,null,0,0,null,null,null,null,null,0,0,0,0,0,0,0,0,0,0,0,0,null,null,null,null,null,null,null,null,null,null,null,null,null,null,0]
[4,null,null,null,null,null,null,null,1,"",null,null,null,null,null,1,null,null,null,null,null,null,null,null,null,null,0,0,0,0,0,0,0,0,0,0,0,0,null,0,0,0,0,0,null,0,0,null,null,null,null,null,0,0,0,0,0,0,0,0,0,0,0,0,null,null,null,null,null,null,null,null,null,null,null,null,null,null,0]
[5,null,null,null,null,null,null,null,1,"",null,null,null,null,null,1,null,null,null,null,null,null,null,null,null,null,0,0,0,0,0,0,0,0,0,0,0,0,null,0,0,0,0,0,null,0,0,null,null,null,null,null,0,0,0,0,0,0,0,0,0,0,0,0,null,null,null,null,null,null,null,null,null,null,null,null,null,null,0]
[6,null,null,null,null,null,null,null,1,"",null,null,null,null,null,1,null,null,null,null,null,null,null,null,null,null,0,0,0,0,0,0,0,0,0,0,0,0,null,0,0,0,0,0,null,0,0,null,null,null,null,null,0,0,0,0,0,0,0,0,0,0,0,0,null,null,null,null,null,null,null,null,null,null,null,null,null,null,0]
[7,null,null,null,null,null,null,null,1,"",null,null,null,null,null,1,null,null,null,null,null,null,null,null,null,null,0,0,0,0,0,0,0,0,0,0,0,0,null,0,0,0,0,0,null,0,0,null,null,null,null,null,0,0,0,0,0,0,0,0,0,0,0,0,null,null,null,null,null,null,null,null,null,null,null,null,null,null,0]
[8,null,null,null,null,null,null,null,1,"",null,null,null,null,null,1,null,null,null,null,null,null,null,null,null,null,0,0,0,0,0,0,0,0,0,0,0,0,null,0,0,0,0,0,null,0,0,null,null,null,null,null,0,0,0,0,0,0,0,0,0,0,0,0,null,null,null,null,null,null,null,null,null,null,null,null,null,null,0]
[9,null,null,null,null,null,null,null,1,"",null,null,null,null,null,1,null,null,null,null,null,null,null,null,null,null,0,0,0,0,0,0,0,0,0,0,0,0,null,0,0,0,0,0,null,0,0,null,null,null,null,null,0,0,0,0,0,0,0,0,0,0,0,0,null,null,null,null,null,null,null,null,null,null,null,null,null,null,0]
[10,null,null,null,null,null,null,null,1,"",null,null,null,null,null,1,null,null,null,null,null,null,null,null,null,null,0,0,0,0,0,0,0,0,0,0,0,0,null,0,0,0,0,0,null,0,0,null,null,null,null,null,0,0,0,0,0,0,0,0,0,0,0,0,null,null,null,null,null,null,null,null,null,null,null,null,null,null,0]
[11,null,null,null,null,null,null,null,1,"",null,null,null,null,null,1,null,null,null,null,null,null,null,null,null,null,0,0,0,0,0,0,0,0,0,0,0,0,null,0,0,0,0,0,null,0,0,null,null,null,null,null,0,0,0,0,0,0,0,0,0,0,0,0,null,null,null,null,null,null,null,null,null,null,null,null,null,null,0]
[12,null,null,null,null,null,null,null,1,"",null,null,null,null,null,1,null,null,null,null,null,null,null,null,null,null,0,0,0,0,0,0,0,0,0,0,0,0,null,0,0,0,0,0,null,0,0,null,null,null,null,null,0,0,0,0,0,0,0,0,0,0,0,0,null,null,null,null,null,null,null,null,null,null,null,null,null,null,0]
[13,null,null,null,null,null,null,null,1,"",null,null,null,null,null,1,null,null,null,null,null,null,null,null,null,null,0,0,0,0,0,0,0,0,0,0,0,0,null,0,0,0,0,0,null,0,0,null,null,null,null,null,0,0,0,0,0,0,0,0,0,0,0,0,null,null,null,null,null,null,null,null,null,null,null,null,null,null,0]
[14,null,null,null,null,null,null,null,1,"",null,null,null,null,null,1,null,null,null,null,null,null,null,null,null,null,0,0,0,0,0,0,0,0,0,0,0,0,null,0,0,0,0,0,null,0,0,null,null,null,null,null,0,0,0,0,0,0,0,0,0,0,0,0,null,null,null,null,null,null,null,null,null,null,null,null,null,null,0]
[15,null,null,null,null,null,null,null,1,"",null,null,null,null,null,1,null,null,null,null,null,null,null,null,null,null,0,0,0,0,0,0,0,0,0,0,0,0,null,0,0,0,0,0,null,0,0,null,null,null,null,null,0,0,0,0,0,0,0,0,0,0,0,0,null,null,null,null,null,null,null,null,null,null,null,null,null,null,0]
[16,null,null,null,null,null,null,null,1,"",null,null,null,null,null,1,null,null,null,null,null,null,null,null,null,null,0,0,0,0,0,0,0,0,0,0,0,0,null,0,0,0,0,0,null,0,0,null,null,null,null,null,0,0,0,0,0,0,0,0,0,0,0,0,null,null,null,null,null,null,null,null,null,null,null,null,null,null,0]
[{"$f":"A111+1","v":17},null,null,null,null,null,null,null,{"$f":"IF(S112>0,S112,DATEDIF(G112,H112,\"M\")+1)","v":1},{"$f":"IF(S112>0,\"※\",\"\")","v":""},null,null,null,null,null,1,null,null,null,null,null,null,null,null,null,null,0,0,0,0,0,0,0,0,0,0,0,0,null,0,0,0,0,0,null,0,0,null,null,null,null,null,0,0,0,0,0,0,0,0,0,0,0,0,null,null,null,null,null,null,null,null,null,null,null,null,null,null,0]
[18,null,null,null,null,null,null,null,1,"",null,null,null,null,null,1,null,null,null,null,null,null,null,null,null,null,0,0,0,0,0,0,0,0,0,0,0,0,null,0,0,0,0,0,null,0,0,null,null,null,null,null,0,0,0,0,0,0,0,0,0,0,0,0,null,null,null,null,null,null,null,null,null,null,null,null,null,null,0]
[19,null,null,null,null,null,null,null,1,"",null,null,null,null,null,1,null,null,null,null,null,null,null,null,null,null,0,0,0,0,0,0,0,0,0,0,0,0,null,0,0,0,0,0,null,0,0,null,null,null,null,null,0,0,0,0,0,0,0,0,0,0,0,0,null,null,null,null,null,null,null,null,null,null,null,null,null,null,0]
[20,null,null,null,null,null,null,null,1,"",null,null,null,null,null,1,null,null,null,null,null,null,null,null,null,null,0,0,0,0,0,0,0,0,0,0,0,0,null,0,0,0,0,0,null,0,0,null,null,null,null,null,0,0,0,0,0,0,0,0,0,0,0,0,null,null,null,null,null,null,null,null,null,null,null,null,null,null,0]
[21,null,null,null,null,null,null,null,1,"",null,null,null,null,null,1,null,null,null,null,null,null,null,null,null,null,0,0,0,0,0,0,0,0,0,0,0,0,null,0,0,0,0,0,null,0,0,null,null,null,null,null,0,0,0,0,0,0,0,0,0,0,0,0,null,null,null,null,null,null,null,null,null,null,null,null,null,null,0]
[22,null,null,null,null,null,null,null,1,"",null,null,null,null,null,1,null,null,null,null,null,null,null,null,null,null,0,0,0,0,0,0,0,0,0,0,0,0,null,0,0,0,0,0,null,0,0,null,null,null,null,null,0,0,0,0,0,0,0,0,0,0,0,0,null,null,null,null,null,null,null,null,null,null,null,null,null,null,0]
[23,null,null,null,null,null,null,null,1,"",null,null,null,null,null,1,null,null,null,null,null,null,null,null,null,null,0,0,0,0,0,0,0,0,0,0,0,0,null,0,0,0,0,0,null,0,0,null,null,null,null,null,0,0,0,0,0,0,0,0,0,0,0,0,null,null,null,null,null,null,null,null,null,null,null,null,null,null,0]
[24,null,null,null,null,null,null,null,1,"",null,null,null,null,null,1,null,null,null,null,null,null,null,null,null,null,0,0,0,0,0,0,0,0,0,0,0,0,null,0,0,0,0,0,null,0,0,null,null,null,null,null,0,0,0,0,0,0,0,0,0,0,0,0,null,null,null,null,null,null,null,null,null,null,null,null,null,null,0]
[25,null,null,null,null,null,null,null,1,"",null,null,null,null,null,1,null,null,null,null,null,null,null,null,null,null,0,0,0,0,0,0,0,0,0,0,0,0,null,0,0,0,0,0,null,0,0,null,null,null,null,null,0,0,0,0,0,0,0,0,0,0,0,0,null,null,null,null,null,null,null,null,null,null,null,null,null,null,0]
[26,null,null,null,null,null,null,null,1,"",null,null,null,null,null,1,null,null,null,null,null,null,null,null,null,null,0,0,0,0,0,0,0,0,0,0,0,0,null,0,0,0,0,0,null,0,0,null,null,null,null,null,0,0,0,0,0,0,0,0,0,0,0,0,null,null,null,null,null,null,null,null,null,null,null,null,null,null,0]
[27,null,null,null,null,null,null,null,1,"",null,null,null,null,null,1,null,null,null,null,null,null,null,null,null,null,0,0,0,0,0,0,0,0,0,0,0,0,null,0,0,0,0,0,null,0,0,null,null,null,null,null,0,0,0,0,0,0,0,0,0,0,0,0,null,null,null,null,null,null,null,null,null,null,null,null,null,null,0]
[28,null,null,null,null,null,null,null,1,"",null,null,null,null,null,1,null,null,null,null,null,null,null,null,null,null,0,0,0,0,0,0,0,0,0,0,0,0,null,0,0,0,0,0,null,0,0,null,null,null,null,null,0,0,0,0,0,0,0,0,0,0,0,0,null,null,null,null,null,null,null,null,null,null,null,null,null,null,0]
[29,null,null,null,null,null,null,null,1,"",null,null,null,null,null,1,null,null,null,null,null,null,null,null,null,null,0,0,0,0,0,0,0,0,0,0,0,0,null,0,0,0,0,0,null,0,0,null,null,null,null,null,0,0,0,0,0,0,0,0,0,0,0,0,null,null,null,null,null,null,null,null,null,null,null,null,null,null,0]
[30,null,null,null,null,null,null,null,1,"",null,null,null,null,null,1,null,null,null,null,null,null,null,null,null,null,0,0,0,0,0,0,0,0,0,0,0,0,null,0,0,0,0,0,null,0,0,null,null,null,null,null,0,0,0,0,0,0,0,0,0,0,0,0,null,null,null,null,null,null,null,null,null,null,null,null,null,null,0]
[null,null,null,null,null,null,null,null,null,null,null,null,null,null,null,null,null,null,null,null,null,null,null,null,null,null,{"$f":"COUNTIF($F126,\"*中標津*\")+COUNTIF($F126,\"*釧路*\")+COUNTIF($F126,\"*帯広*\")","v":0},{"$f":"COUNTIF($F126,\"*丘珠*\")+COUNTIF($F126,\"*新千歳*\")","v":0},{"$f":"COUNTIF($F126,\"*稚内*\")+COUNTIF($F126,\"*礼文*\")+COUNTIF($F126,\"*利尻*\")+COUNTIF($F126,\"*紋別*\")+COUNTIF($F126,\"*女満別*\")+COUNTIF($F126,\"*旭川*\")","v":0},{"$f":"COUNTIF($F126,\"*函館*\")+COUNTIF($F126,\"*奥尻*\")","v":0},{"$f":"IF(COUNTIF($E126,\"*青森*\"),1,0)","v":0},{"$f":"IF(COUNTIF($E126,\"*岩手*\"),1,0)","v":0},{"$f":"IF(COUNTIF($E126,\"*宮城*\"),1,0)","v":0},{"$f":"IF(COUNTIF($E126,\"*秋田*\"),1,0)","v":0},{"$f":"IF(COUNTIF($E126,\"*山形*\"),1,0)","v":0},{"$f":"IF(COUNTIF($E126,\"*福島*\"),1,0)","v":0},{"$f":"IF(COUNTIF($E126,\"*茨城*\"),1,0)","v":0},{"$f":"IF(COUNTIF($E126,\"*栃木*\"),1,0)","v":0},null,{"$f":"IF(COUNTIF($E126,\"*埼玉*\"),1,0)","v":0},{"$f":"IF(COUNTIF($E126,\"*千葉*\"),1,0)","v":0},{"$f":"IF(COUNTIF($E126,\"*東京*\"),1,0)","v":0},{"$f":"IF(COUNTIF($E126,\"*神奈川*\"),1,0)","v":0},{"$f":"IF(COUNTIF($E126,\"*山梨*\"),1,0)","v":0},null,{"$f":"IF(COUNTIF($E126,\"*新潟*\"),1,0)","v":0},{"$f":"IF(COUNTIF($E126,\"*静岡*\"),1,0)","v":0},null,null,null,null,null,{"$f":"IF(COUNTIF($K126,\"*土木*\"),1,0)","v":0},{"$f":"IF(COUNTIF($K126,\"*建築*\"),1,0)","v":0},{"$f":"IF(COUNTIF($K126,\"*電気工事*\"),1,0)","v":0},{"$f":"IF(COUNTIF($K126,\"*管*\"),1,0)","v":0},{"$f":"IF(COUNTIF($K126,\"*鋼構造物工事*\"),1,0)","v":0},0,{"$f":"IF(COUNTIF($K126,\"*塗装*\"),1,0)","v":0},{"$f":"IF(COUNTIF($K126,\"*機械器具*\"),1,0)","v":0},{"$f":"IF(COUNTIF($K126,\"*電気通信*\"),1,0)","v":0},{"$f":"IF(COUNTIF($K126,\"*造園*\"),1,0)","v":0},{"$f":"IF(COUNTIF($K126,\"*水道*\"),1,0)","v":0},{"$f":"IF(COUNTIF($K126,\"*消防*\"),1,0)","v":0},null,null,null,null,null,null,null,null,null,null,null,null,null,null,7]